Workbook

Sheet 汨罗万容
A1: 附表2：
A2: 汨罗万容电子废弃物处理有限公司2025年第4季度拆解产物产生、处理明细表
A3: 废物名称 | B3: 环保编码 | C3: 编码 | D3: 上期结存（吨） | E3: 本期产生量（吨） | F3: 本期处理量（吨） | G3: 本期处理量明细 | I3: 库存量（吨）
G4: 重量 | H4: 处理单位
A5: 冰箱白铜线 | B5: B-01-01 | C5: B-01-01-001 | D5: 0.0560 | E5: 0.6040 | F5: 0.6600 | G5: 0.6600 | H5: 天津永俊金属制品有限公司 | I5: =D5+E5-F5 -> 0.0000
A6: 冰箱破碎铜 | B6: B-01-01 | C6: B-01-01-002 | D6: 4.5285 | E6: 14.6635 | F6: 19.1920 | G6: 0.0140 | H6: 盘亏 | I6: 0.0000
G7: 2.8670 | H7: 天津恒丰运业金属制品有限公司
G8: 8.6090 | H8: 天津科盟环保科技有限公司
G9: 7.7020 | H9: 天津永俊金属制品有限公司
A10: 空调三通阀 | B10: B-01-01 | C10: B-01-01-004 | D10: 2.4020 | E10: 5.9445 | F10: 7.0930 | G10: 2.8650 | H10: 汨罗市伟业有色金属有限公司 | I10: 1.2535
G11: 4.2280 | H11: 天津奥尼斯特物产开发有限公司
A12: 连接铜管 | B12: B-01-01 | C12: B-01-01-007 | D12: 0.0000 | E12: 2.0580 | F12: 2.0580 | G12: 2.0580 | H12: 深加工废钢破碎线 | I12: =D12+E12-F12 -> 0.0000
A13: 高频头 | B13: B-01-01 | C13: B-01-01-01 | D13: 0.2270 | E13: 0.4445 | F13: 0.6715 | G13: 0.0115 | H13: 盘亏 | I13: 0.0000
G14: 0.4800 | H14: 临沂恒昌金属制品有限公司
G15: 0.1800 | H15: 天津凯撒金属有限公司
A16: 电视机变压器 | B16: B-01-01 | C16: B-01-01-02 | D16: 0.0000 | E16: 0.7610 | F16: 0.7610 | G16: 0.0010 | H16: 盘亏 | I16: 0.0000
G17: 0.7600 | H17: 天津永俊金属制品有限公司
A18: 四通阀 | B18: B-01-01 | C18: B-01-01-05 | D18: 5.1725 | E18: 6.8270 | F18: 10.4570 | G18: 3.9270 | H18: 天津恒丰运业金属制品有限公司 | I18: =D18+E18-F18 -> 1.5425
G19: 6.5300 | H19: 天津荣和金属制品有限公司
A20: 冰箱铜管 | B20: B-01-01 | C20: B-01-01-06 | D20: 0.5940 | E20: 5.5790 | F20: 6.1730 | G20: 0.0110 | H20: 盘亏 | I20: =D20+E20-F20 -> 0.0000
G21: 0.2390 | H21: 天津恒丰运业金属制品有限公司
G22: 2.5720 | H22: 天津科盟环保科技有限公司
G23: 3.3510 | H23: 天津永俊金属制品有限公司
A24: 空调铜管 | B24: B-01-01 | C24: B-01-01-09 | D24: 4.0890 | E24: 33.1235 | F24: 29.6570 | G24: 19.6970 | H24: 天津恒丰运业金属制品有限公司 | I24: =D24+E24-F24 -> 7.5555
G25: 9.9600 | H25: 天津凯撒金属有限公司
A26: 空调变压器 | B26: B-01-01 | C26: B-01-01-11 | D26: 17.2010 | E26: 16.7855 | F26: 33.5700 | G26: 6.2600 | H26: 临沂恒昌金属制品有限公司 | I26: 0.4165
G27: 21.3400 | H27: 天津淏泽丰润业金属有限公司
G28: 5.9700 | H28: 天津永俊金属制品有限公司
A29: 冰箱破碎铝 | B29: B-01-02 | C29: B-01-02-001 | D29: 13.5210 | E29: 76.2085 | F29: 89.2200 | G29: 29.0600 | H29: 湖南西鼎新材料有限公司 | I29: 0.5095
G30: 53.0400 | H30: 天津光华远大金属制品有限公司
G31: 7.1200 | H31: 天津凯成发金属制品有限公司
A32: 生铝 | B32: B-01-02 | C32: B-01-02-002 | D32: 5.4705 | E32: 14.0305 | F32: 16.7900 | G32: 7.1100 | H32: 湖南西鼎新材料有限公司 | I32: =D32+E32-F32 -> 2.7110
G33: 9.6800 | H33: 天津凯成发金属制品有限公司
A34: 电视机杂铝 | B34: B-01-02 | C34: B-01-02-01 | D34: 0.0000 | E34: 0.2745 | F34: 0.2745 | G34: 0.2745 | H34: 深加工废钢破碎线 | I34: 0.0000
A35: 洗衣机铝外壳 | B35: B-01-02 | C35: B-01-02-06 | D35: 0.0000 | E35: 2.4135 | F35: 2.4135 | G35: 2.4135 | H35: 深加工废钢破碎线 | I35: 0.0000
A36: 空调杂铝 | B36: B-01-02 | C36: B-01-02-11 | D36: 1.2310 | E36: 1.9820 | F36: 3.0900 | G36: 3.0900 | H36: 湖南西鼎新材料有限公司 | I36: 0.1230
A37: 洗衣机杂铝（三角铝） | B37: B-01-02 | C37: B-01-02-14 | D37: 10.7440 | E37: 28.7595 | F37: 33.5000 | G37: 13.3700 | H37: 天津光华远大金属制品有限公司 | I37: 6.0035
G38: 8.7600 | H38: 天津凯成发金属制品有限公司
G39: 11.3700 | H39: 天津荣和金属制品有限公司
A40: 冰箱锌块 | B40: B-01-03 | C40: B-01-03-001 | D40: 3.9945 | E40: 1.6555 | F40: 5.6500 | G40: 5.6500 | H40: 天津凯撒金属有限公司 | I40: =D40+E40-F40 -> 0.0000
A41: 洗衣机离合器 | B41: B-02-01 | C41: B-02-01-008 | D41: 0.0000 | E41: 381.8895 | F41: 381.8895 | G41: 381.8895 | H41: 深加工废钢破碎线 | I41: 0.0000
A42: 杂铁（待加工） | B42: B-02-01 | C42: B-02-01-009 | D42: 0.0000 | E42: 81.2650 | F42: 81.2650 | G42: 81.2650 | H42: 深加工废钢破碎线 | I42: 0.0000
A43: 防爆带 | B43: B-02-01 | C43: B-02-01-010 | D43: 0.0000 | E43: 13.5175 | F43: 13.5175 | G43: 13.5175 | H43: 深加工废钢破碎线 | I43: 0.0000
A44: 阴罩网 | B44: B-02-01 | C44: B-02-01-011 | D44: 0.0000 | E44: 18.5960 | F44: 18.5960 | G44: 18.5960 | H44: 深加工废钢破碎线 | I44: 0.0000
A45: 杂铁 | B45: B-02-01 | C45: B-02-01-012 | D45: 0.0000 | E45: 21.9850 | F45: 21.9850 | G45: 21.9850 | H45: 深加工废钢破碎线 | I45: 0.0000
A46: 打包铁（一次） | B46: B-02-01 | C46: B-02-01-013 | D46: 17.3350 | E46: 929.4405 | F46: 914.4600 | G46: 914.4600 | H46: 汨罗市和盛废旧物资有限公司 | I46: 32.3155
A47: 不锈铁打包（一次） | B47: B-02-01 | C47: B-02-01-014 | D47: 11.2775 | E47: 140.3440 | F47: 136.8300 | G47: 136.8300 | H47: 湖南兴川耐火材料有限公司 | I47: 14.7915
A48: 冰箱破碎铁 | B48: B-02-01 | C48: B-02-01-06 | D48: 17.9895 | E48: 1279.8905 | F48: 1297.8800 | G48: 1297.8800 | H48: 汨罗市和盛废旧物资有限公司 | I48: 0.0000
A49: 洗衣机拉杆铁 | B49: B-02-01 | C49: B-02-01-09 | D49: 0.0000 | E49: 45.5020 | F49: 45.5020 | G49: 45.5020 | H49: 深加工废钢破碎线 | I49: 0.0000
A50: 洗衣机不锈铁 | B50: B-02-01 | C50: B-02-01-12 | D50: 0.0000 | E50: 16.6020 | F50: 16.6020 | G50: 16.6020 | H50: 深加工废钢破碎线 | I50: 0.0000
A51: 加热管 | B51: B-02-01 | C51: B-02-01-23 | D51: 14.0915 | E51: 14.7810 | F51: 26.4400 | G51: 4.9200 | H51: 湖南西鼎新材料有限公司 | I51: 2.4325
G52: 15.1600 | H52: 天津通亿顺金属制品有限公司
G53: 6.3600 | H53: 天津永俊金属制品有限公司
A54: 底盘铁 | B54: B-02-01 | C54: B-02-01-40 | D54: 4.6485 | E54: 41.2045 | F54: 41.8700 | G54: 11.2500 | H54: 天津埃莫森铜业有限公司 | I54: =D54+E54-F54 -> 3.9830
G55: 13.6100 | H55: 天津恒丰运业金属制品有限公司
G56: 17.0100 | H56: 天津凯成发金属制品有限公司
A57: 废塑料-混合塑料 | B57: C-01-05 | C57: C-01-05-009 | D57: 0.0000 | E57: 1340.9500 | F57: 1340.9500 | G57: 1340.9500 | H57: 深加工塑料破碎线 | I57: 0.0000
A58: 塑料粉碎料-冰箱破碎塑料 | B58: C-03-01 | C58: C-03-01-001 | D58: 49.1110 | E58: 461.7990 | F58: 510.9100 | G58: 222.8400 | H58: 清远市宏鑫塑料五金有限公司 | I58: 0.0000
G59: 288.0700 | H59: 万容日丽新材料（湖南）有限公司
A60: 洗衣机水管 | B60: C-03-01 | C60: C-03-01-002 | D60: 1.5355 | E60: 3.9115 | F60: 5.4280 | G60: 0.0480 | H60: 盘亏 | I60: =D60+E60-F60 -> 0.0190
G61: 5.3800 | H61: 清远市宏鑫塑料五金有限公司
A62: 杂塑料 | B62: C-03-01 | C62: C-03-01-003 | D62: 5.7435 | E62: 141.8865 | F62: 142.2500 | G62: 142.2500 | H62: 株洲恒基资源再生有限公司 | I62: 5.3800
A63: 洗衣机拉杆铁塑料 | B63: C-04-01 | C63: C-04-01-11 | D63: 3.2685 | E63: 9.9075 | F63: 13.1760 | G63: 0.0060 | H63: 盘亏 | I63: 0.0000
G64: 7.2200 | H64: 天津荣和金属制品有限公司
G65: 5.9500 | H65: 天津永俊金属制品有限公司
A66: 滚筒橡胶圈 | B66: C-04-01 | C66: C-04-01-37 | D66: 0.0000 | E66: 12.7540 | F66: 10.6600 | G66: 3.8500 | H66: 湖南郡博环保有限公司 | I66: =D66+E66-F66 -> 2.0940
G67: 6.8100 | H67: 清远市宏鑫塑料五金有限公司
A68: 废塑料（风扇） | B68: C-04-01 | C68: C-04-01-75 | D68: 0.0415 | E68: 0.0000 | F68: 0.0415 | G68: 0.0015 | H68: 盘亏 | I68: 0.0000
G69: 0.0400 | H69: 临沂恒昌金属制品有限公司
A70: 废塑料（PS遮光片） | B70: C-04-01 | C70: C-04-01-78 | D70: 3.9210 | E70: 0.7450 | F70: 4.5680 | G70: 0.0180 | H70: 盘亏 | I70: 0.0980
G71: 4.5500 | H71: 清远市宏鑫塑料五金有限公司
A72: 废塑料（薄膜） | B72: C-04-01 | C72: C-04-01-79 | D72: 5.0175 | E72: 0.7070 | F72: 5.6500 | G72: 5.6500 | H72: 清远市宏鑫塑料五金有限公司 | I72: =D72+E72-F72 -> 0.0745
A73: 废塑料（有机遮光片） | B73: C-04-01 | C73: C-04-01-84 | D73: 1.7810 | E73: 0.3920 | F73: 2.1330 | G73: 0.0030 | H73: 盘亏 | I73: 0.0400
G74: 2.1300 | H74: 清远市宏鑫塑料五金有限公司
A75: 废塑料(MS遮光片) | B75: C-04-01 | C75: C-04-01-86 | D75: 4.4655 | E75: 0.1760 | F75: 4.6265 | G75: 0.0265 | H75: 盘亏 | I75: 0.0150
G76: 4.6000 | H76: 清远市宏鑫塑料五金有限公司
A77: 塑料粉碎料（冰柜主体混合料） | B77: C-04-01 | C77: C-04-01-88 | D77: 48.5790 | E77: 72.2285 | F77: 120.8075 | G77: 0.0275 | H77: 盘亏 | I77: =D77+E77-F77 -> 0.0000
G78: 120.7800 | H78: 清远市宏鑫塑料五金有限公司
A79: 制冷剂（氟利昂） | B79: D-01-01 | C79: D-01-01-01 | D79: 5.4155 | E79: 14.7485 | F79: 14.2600 | G79: 14.2600 | H79: 天津澳宏环保材料有限公司 | I79: 5.9040
A80: 润滑油 | B80: D-01-02 | C80: D-01-02-01 | D80: 4.3275 | E80: 10.6665 | F80: 11.2100 | G80: 11.2100 | H80: 远大(湖南)再生资源股份有限公司 | I80: 3.7840
A81: 平衡环内盐水 | B81: D-01-04 | C81: D-01-04-001 | D81: 0.0000 | E81: 86.1495 | F81: 86.1495 | G81: 86.1495 | H81: 稀释 | I81: 0.0000
A82: CRT锥玻璃 | B82: E-01-02 | C82: E-01-02-001 | D82: 33.9225 | E82: 96.7250 | F82: 106.9400 | G82: 106.9400 | H82: 汨罗万容固体废物处理有限公司 | I82: 23.7075
A83: CRT屏玻璃 | B83: E-01-03 | C83: E-01-03-001 | D83: 40.2190 | E83: 179.6090 | F83: 201.5300 | G83: 201.5300 | H83: 聊城晶悦玻璃原料有限公司 | I83: 18.2980
A84: CRT玻璃 | B84: E-01-03 | C84: E-01-03-002 | D84: 0.0000 | E84: 4.3805 | F84: 4.3805 | G84: 0.0005 | H84: 盘亏 | I84: 0.0000
G85: 4.3800 | H85: 聊城晶悦玻璃原料有限公司
A86: 液晶面板 | B86: E-01-03 | C86: E-01-03-02 | D86: 15.0515 | E86: 2.1830 | F86: 16.9700 | G86: 16.9700 | H86: 安阳市硕盛电子废弃物循环利用有限公司 | I86: =D86+E86-F86 -> 0.2645
A87: 管颈管（电子枪）玻璃 | B87: E-01-06 | C87: E-01-06-001 | D87: 0.3460 | E87: 1.0570 | F87: 1.1880 | G87: 1.1880 | H87: 汨罗万容固体废物处理有限公司 | I87: 0.2150
A88: 冰箱玻璃 | B88: E-01-06 | C88: E-01-06-01 | D88: 23.5045 | E88: 45.1365 | F88: 61.3400 | G88: 61.3400 | H88: 汨罗市壹达玻璃纤维厂 | I88: 7.3010
A89: 洗衣机玻璃 | B89: E-01-06 | C89: E-01-06-02 | D89: 4.7065 | E89: 25.8290 | F89: 13.4500 | G89: 13.4500 | H89: 汨罗市壹达玻璃纤维厂 | I89: 17.0855
A90: 液晶玻璃 | B90: E-01-06 | C90: E-01-06-03 | D90: 0.0880 | E90: 0.1075 | F90: 0.0000 | G90: 0.0000 | H90: 暂存 | I90: 0.1955
A91: 冰箱花玻璃 | B91: F-01-07 | C91: F-01-07-003 | D91: 0.0000 | E91: 9.9050 | F91: 9.9050 | G91: 9.9050 | H91: 深加工废钢破碎线 | I91: 0.0000
A92: 洗衣机花玻璃 | B92: F-01-07 | C92: F-01-07-008 | D92: 0.0000 | E92: 16.3185 | F92: 16.3185 | G92: 16.3185 | H92: 深加工废钢破碎线 | I92: 0.0000
A93: 铜线圈 | B93: F-01-02 | C93: F-01-02-001 | D93: 4.9590 | E93: 10.9080 | F93: 13.6800 | G93: 6.2100 | H93: 天津科盟环保科技有限公司 | I93: 2.1870
G94: 7.4700 | H94: 天津诺康金属制品有限公司
A95: 电冰箱压缩机-铝 | B95: F-01-03 | C95: F-01-03-001 | D95: 19.4700 | E95: 200.3700 | F95: 219.8400 | G95: 219.8400 | H95: 铜陵福茂再生资源利用有限公司 | I95: =D95+E95-F95 -> 0.0000
A96: 电冰箱压缩机-铜 | B96: F-01-03 | C96: F-01-03-002 | D96: 32.5035 | E96: 354.0365 | F96: 386.5400 | G96: 70.6500 | H96: 湖北翰联环保科技有限公司 | I96: =D96+E96-F96 -> 0.0000
G97: 70.0100 | H97: 天津奥尼斯特物产开发有限公司
G98: 70.3900 | H98: 天津恒丰运业金属制品有限公司
G99: 70.5700 | H99: 天津诺康金属制品有限公司
G100: 70.4800 | H100: 天津永俊金属制品有限公司
G101: 34.4400 | H101: 铜陵福茂再生资源利用有限公司
A102: 空调压缩机 | B102: F-01-03 | C102: F-01-03-02 | D102: 24.7365 | E102: 465.3785 | F102: 469.6900 | G102: 36.2500 | H102: 湖北翰联环保科技有限公司 | I102: =D102+E102-F102 -> 20.4250
G103: 70.2100 | H103: 天津奥尼斯特物产开发有限公司
G104: 62.9000 | H104: 天津恒丰运业金属制品有限公司
G105: 34.0400 | H105: 天津凯成发金属制品有限公司
G106: 34.3500 | H106: 天津凯撒金属有限公司
G107: 70.7400 | H107: 天津诺康金属制品有限公司
G108: 68.5800 | H108: 天津荣和金属制品有限公司
G109: 71.4000 | H109: 天津永俊金属制品有限公司
G110: 21.2200 | H110: 铜陵福茂再生资源利用有限公司
A111: 瓷电机-铝 | B111: F-01-04 | C111: F-01-04-001 | D111: 5.8600 | E111: 16.3270 | F111: 19.9400 | G111: 19.9400 | H111: 天津凯撒金属有限公司 | I111: =D111+E111-F111 -> 2.2470
A112: 瓷电机-铜 | B112: F-01-04 | C112: F-01-04-002 | D112: 4.1390 | E112: 11.5715 | F112: 14.2145 | G112: 0.0245 | H112: 盘亏 | I112: 1.4960
G113: 14.1900 | H113: 天津凯撒金属有限公司
A114: 铁壳铝电机 | B114: F-01-04 | C114: F-01-04-005 | D114: 3.2320 | E114: 48.1280 | F114: 40.4500 | G114: 12.6000 | H114: 天津凯撒金属有限公司 | I114: 10.9100
G115: 1.2200 | H115: 天津诺康金属制品有限公司
G116: 26.6300 | H116: 天津荣和金属制品有限公司
A117: 铁壳铜电机 | B117: F-01-04 | C117: F-01-04-006 | D117: 11.2370 | E117: 42.7020 | F117: 49.7500 | G117: 5.2700 | H117: 临沂恒昌金属制品有限公司 | I117: =D117+E117-F117 -> 4.1890
G118: 10.3100 | H118: 天津恒丰运业金属制品有限公司
G119: 34.1700 | H119: 天津荣和金属制品有限公司
A120: 全自动电机-铝壳铜芯 | B120: F-01-04 | C120: F-01-04-06 | D120: 3.6965 | E120: 45.5110 | F120: 46.2870 | G120: 0.0070 | H120: 盘亏 | I120: =D120+E120-F120 -> 2.9205
G121: 15.5600 | H121: 临沂恒昌金属制品有限公司
G122: 30.7200 | H122: 天津诺康金属制品有限公司
A123: 全自动电机-铝壳铝芯 | B123: F-01-04 | C123: F-01-04-07 | D123: 2.5640 | E123: 61.1385 | F123: 59.5200 | G123: 15.0400 | H123: 临沂恒昌金属制品有限公司 | I123: =D123+E123-F123 -> 4.1825
G124: 12.8200 | H124: 天津光华远大金属制品有限公司
G125: 31.6600 | H125: 天津诺康金属制品有限公司
A126: 全自动电机-铁壳铜芯 | B126: F-01-04 | C126: F-01-04-11 | D126: 1.6100 | E126: 38.4655 | F126: 40.0755 | G126: 0.0055 | H126: 盘亏 | I126: 0.0000
G127: 40.0700 | H127: 天津诺康金属制品有限公司
A128: 全自动电机-铁壳铝芯 | B128: F-01-04 | C128: F-01-04-12 | D128: 7.9410 | E128: 82.0990 | F128: 90.0400 | G128: 25.0700 | H128: 天津恒丰运业金属制品有限公司 | I128: 0.0000
G129: 17.7300 | H129: 天津凯撒金属有限公司
G130: 26.0600 | H130: 天津诺康金属制品有限公司
G131: 21.1800 | H131: 天津荣和金属制品有限公司
A132: 滚筒电机-铝壳铜芯 | B132: F-01-04 | C132: F-01-04-13 | D132: 2.6240 | E132: 25.7615 | F132: 25.7805 | G132: 0.0005 | H132: 盘亏 | I132: =D132+E132-F132 -> 2.6050
G133: 25.7800 | H133: 临沂恒昌金属制品有限公司
A134: 滚筒电机-铝壳铝芯 | B134: F-01-04 | C134: F-01-04-14 | D134: 3.9695 | E134: 41.8105 | F134: 38.9710 | G134: 0.0110 | H134: 盘亏 | I134: =D134+E134-F134 -> 6.8090
G135: 12.9400 | H135: 临沂恒昌金属制品有限公司
G136: 14.0800 | H136: 天津光华远大金属制品有限公司
G137: 11.9400 | H137: 天津荣和金属制品有限公司
A138: 洗衣机电容 | B138: F-01-05 | C138: F-01-05-01 | D138: 0.4335 | E138: 11.3275 | F138: 11.7180 | G138: 0.0080 | H138: 盘亏 | I138: =D138+E138-F138 -> 0.0430
G139: 11.7100 | H139: 天津永俊金属制品有限公司
A140: 空调电容 | B140: F-01-05 | C140: F-01-05-02 | D140: 0.3455 | E140: 6.7545 | F140: 7.1000 | G140: 7.1000 | H140: 天津永俊金属制品有限公司 | I140: 0.0000
A141: 冰箱电容 | B141: F-01-05 | C141: F-01-05-03 | D141: 3.1215 | E141: 1.9285 | F141: 5.0500 | G141: 5.0500 | H141: 天津永俊金属制品有限公司 | I141: 0.0000
A142: CPU | B142: F-01-06 | C142: F-01-06-01 | D142: 0.0230 | E142: 0.0000 | F142: 0.0230 | G142: 0.0230 | H142: 永兴鹏琨环保有限公司 | I142: 0.0000
A143: 电视电路板 | B143: F-01-07 | C143: F-01-07-001 | D143: 3.9715 | E143: 20.6730 | F143: 17.4325 | G143: 8.3925 | H143: 湘潭云萃环保技术有限公司 | I143: 7.2120
G144: 9.0400 | H144: 永兴鹏琨环保有限公司
A145: 内存条 | B145: F-01-07 | C145: F-01-07-01 | D145: 0.0150 | E145: 0.0000 | F145: 0.0150 | G145: 0.0150 | H145: 永兴鹏琨环保有限公司 | I145: =D145+E145-F145 -> 0.0000
A146: 冰箱电路板 | B146: F-01-08 | C146: F-01-08-001 | D146: 0.6885 | E146: 1.5915 | F146: 2.2800 | G146: 1.4130 | H146: 湘潭云萃环保技术有限公司 | I146: 0.0000
G147: 0.8670 | H147: 永兴鹏琨环保有限公司
A148: 硬盘 | B148: F-01-08 | C148: F-01-08-01 | D148: 1.3835 | E148: 0.0165 | F148: 1.4000 | G148: 1.4000 | H148: 临沂恒昌金属制品有限公司 | I148: 0.0000
A149: 洗衣机电路板 | B149: F-01-09 | C149: F-01-09-04 | D149: 32.8470 | E149: 49.8260 | F149: 63.9000 | G149: 7.5900 | H149: 湘潭云萃环保技术有限公司 | I149: 18.7730
G150: 56.3100 | H150: 永兴鹏琨环保有限公司
A151: 电脑主板 | B151: F-01-09 | C151: F-01-09-07 | D151: 3.3635 | E151: 0.0000 | F151: 3.3635 | G151: 3.3635 | H151: 湘潭云萃环保技术有限公司 | I151: =D151+E151-F151 -> 0.0000
A152: 空调线路板 | B152: F-01-09 | C152: F-01-09-08 | D152: 4.7260 | E152: 11.9710 | F152: 7.8025 | G152: 7.8025 | H152: 湘潭云萃环保技术有限公司 | I152: 8.8945
A153: 液晶电路板（电源板） | B153: F-01-09 | C153: F-01-09-14 | D153: 0.0355 | E153: 0.6975 | F153: 0.3440 | G153: 0.3440 | H153: 永兴鹏琨环保有限公司 | I153: 0.3890
A154: 液晶电路板（软板） | B154: F-01-09 | C154: F-01-09-15 | D154: 0.0050 | E154: 0.0765 | F154: 0.0395 | G154: 0.0395 | H154: 永兴鹏琨环保有限公司 | I154: 0.0420
A155: 扬声器 | B155: F-01-10 | C155: F-01-10-001 | D155: 3.4520 | E155: 6.5720 | F155: 9.8400 | G155: 8.3500 | H155: 天津荣和金属制品有限公司 | I155: 0.1840
G156: 1.4900 | H156: 天津永俊金属制品有限公司
A157: 液晶扬声器 | B157: F-01-10 | C157: F-01-10-002 | D157: 1.9665 | E157: 0.3035 | F157: 2.2700 | G157: 2.0400 | H157: 天津荣和金属制品有限公司 | I157: =D157+E157-F157 -> 0.0000
G158: 0.2300 | H158: 天津永俊金属制品有限公司
A159: 电脑电池 | B159: F-01-10 | C159: F-01-10-01 | D159: 0.0035 | E159: 0.0000 | F159: 0.0000 | G159: 0.0000 | H159: 暂存 | I159: 0.0035
A160: 电子枪 | B160: F-01-11 | C160: F-01-11-001 | D160: 0.1845 | E160: 0.5520 | F160: 0.0000 | G160: 0.0000 | H160: 暂存 | I160: 0.7365
A161: 电源盒 | B161: F-01-12 | C161: F-01-12-01 | D161: 7.6180 | E161: 0.0220 | F161: 7.6400 | G161: 7.6400 | H161: 临沂恒昌金属制品有限公司 | I161: 0.0000
A162: 光驱 | B162: F-01-14 | C162: F-01-14-01 | D162: 3.1320 | E162: 0.0180 | F162: 3.1500 | G162: 3.1500 | H162: 临沂恒昌金属制品有限公司 | I162: 0.0000
A163: 空调蒸发器 | B163: F-01-15 | C163: F-01-15-001 | D163: 9.7465 | E163: 73.2525 | F163: 74.7445 | G163: 1.8900 | H163: 天津恒丰运业金属制品有限公司 | I163: 8.2545
G164: 35.0100 | H164: 天津科盟环保科技有限公司
G165: 37.8445 | H165: 深加工废钢破碎线
A166: 空调冷凝器 | B166: F-01-16 | C166: F-01-16-001 | D166: 2.8875 | E166: 147.2660 | F166: 143.5525 | G166: 20.8400 | H166: 湖南西鼎新材料有限公司 | I166: =D166+E166-F166 -> 6.6010
G167: 35.9400 | H167: 汨罗市伟业有色金属有限公司
G168: 10.2900 | H168: 天津凯成发金属制品有限公司
G169: 76.4825 | H169: 深加工废钢破碎线
A170: 洗衣机水位开关 | B170: F-01-17 | C170: F-01-17-001 | D170: 3.0280 | E170: 4.7890 | F170: 6.2900 | G170: 6.2900 | H170: 天津永俊金属制品有限公司 | I170: 1.5270
A171: 冰箱变压器 | B171: F-01-21 | C171: F-01-21-002 | D171: 0.1525 | E171: 0.1430 | F171: 0.2955 | G171: 0.0055 | H171: 盘亏 | I171: 0.0000
G172: 0.2900 | H172: 天津永俊金属制品有限公司
A173: 洗衣机变压器 | B173: F-01-21 | C173: F-01-21-003 | D173: 0.0000 | E173: 3.0830 | F173: 2.9400 | G173: 2.9400 | H173: 天津永俊金属制品有限公司 | I173: =D173+E173-F173 -> 0.1430
A174: 风扇电动机 | B174: F-01-26 | C174: F-01-26-001 | D174: 2.1320 | E174: 0.9495 | F174: 3.0100 | G174: 3.0100 | H174: 天津凯撒金属有限公司 | I174: 0.0715
A175: 接线盒 | B175: F-01-26 | C175: F-01-26-002 | D175: 2.4575 | E175: 1.7185 | F175: 3.8430 | G175: 0.0030 | H175: 盘亏 | I175: 0.3330
G176: 3.8400 | H176: 天津开泰金属制品有限公司
A177: 空调电磁阀 | B177: F-01-26 | C177: F-01-26-003 | D177: 1.7110 | E177: 3.2040 | F177: 4.4500 | G177: 4.4500 | H177: 天津凯撒金属有限公司 | I177: =D177+E177-F177 -> 0.4650
A178: 内机电动机 | B178: F-01-26 | C178: F-01-26-004 | D178: 8.6030 | E178: 39.0025 | F178: 36.4700 | G178: 9.9400 | H178: 天津淏泽丰润业金属有限公司 | I178: 11.1355
G179: 15.0000 | H179: 天津开泰金属制品有限公司
G180: 11.5300 | H180: 天津荣和金属制品有限公司
A181: 排水牵引器 | B181: F-01-26 | C181: F-01-26-005 | D181: 21.1875 | E181: 20.3110 | F181: 40.2000 | G181: 27.4800 | H181: 天津凯撒金属有限公司 | I181: 1.2985
G182: 12.7200 | H182: 天津永俊金属制品有限公司
A183: 散热风扇 | B183: F-01-26 | C183: F-01-26-006 | D183: 5.8080 | E183: 3.6905 | F183: 9.1900 | G183: 9.1900 | H183: 天津凯撒金属有限公司 | I183: =D183+E183-F183 -> 0.3085
A184: 外机电动机 | B184: F-01-26 | C184: F-01-26-008 | D184: 21.2160 | E184: 61.4725 | F184: 72.6300 | G184: 10.0200 | H184: 临沂恒昌金属制品有限公司 | I184: 10.0585
G185: 28.2300 | H185: 天津淏泽丰润业金属有限公司
G186: 34.3800 | H186: 天津诺康金属制品有限公司
A187: 温控器 | B187: F-01-26 | C187: F-01-26-009 | D187: 4.1120 | E187: 2.3280 | F187: 6.4400 | G187: 6.4400 | H187: 天津开泰金属制品有限公司 | I187: 0.0000
A188: 洗衣机定时器 | B188: F-01-26 | C188: F-01-26-010 | D188: 0.8825 | E188: 2.1575 | F188: 3.0400 | G188: 3.0400 | H188: 天津永俊金属制品有限公司 | I188: 0.0000
A189: 洗衣机减速器 | B189: F-01-26 | C189: F-01-26-011 | D189: 3.0545 | E189: 4.7755 | F189: 7.8300 | G189: 7.8300 | H189: 天津永俊金属制品有限公司 | I189: 0.0000
A190: 洗衣机进水阀 | B190: F-01-26 | C190: F-01-26-012 | D190: 4.1220 | E190: 11.3230 | F190: 14.7120 | G190: 0.0520 | H190: 盘亏 | I190: 0.7330
G191: 14.6600 | H191: 天津凯撒金属有限公司
A192: 洗衣机排水阀 | B192: F-01-26 | C192: F-01-26-013 | D192: 2.6610 | E192: 0.6790 | F192: 3.3400 | G192: 3.3400 | H192: 天津凯撒金属有限公司 | I192: =D192+E192-F192 -> 0.0000
A193: 冰箱杂线 | B193: G-01-03 | C193: G-01-03-001 | D193: 0.4565 | E193: 7.9235 | F193: 8.3800 | G193: 6.6400 | H193: 天津淏泽丰润业金属有限公司 | I193: 0.0000
G194: 1.7400 | H194: 天津永俊金属制品有限公司
A195: 电视机铝消磁线 | B195: G-01-03 | C195: G-01-03-002 | D195: 0.0000 | E195: 0.7005 | F195: 0.7005 | G195: 0.7005 | H195: 深加工废钢破碎线 | I195: 0.0000
A196: 电视机铜消磁线 | B196: G-01-03 | C196: G-01-03-003 | D196: 0.0000 | E196: 2.1315 | F196: 2.1315 | G196: 2.1315 | H196: 深加工废钢破碎线 | I196: 0.0000
A197: 电视机杂线 | B197: G-01-03 | C197: G-01-03-004 | D197: 0.0000 | E197: 2.2205 | F197: 2.2205 | G197: 2.2205 | H197: 深加工废钢破碎线 | I197: 0.0000
A198: 地线 | B198: G-01-03 | C198: G-01-03-005 | D198: 0.0000 | E198: 0.1185 | F198: 0.1185 | G198: 0.1185 | H198: 深加工废钢破碎线 | I198: 0.0000
A199: 洗衣机杂线 | B199: G-01-03 | C199: G-01-03-006 | D199: 0.0000 | E199: 31.3815 | F199: 31.3815 | G199: 31.3815 | H199: 深加工废钢破碎线 | I199: 0.0000
A200: 空调杂线 | B200: G-01-03 | C200: G-01-03-007 | D200: 0.0000 | E200: 12.5740 | F200: 12.5740 | G200: 12.5740 | H200: 深加工废钢破碎线 | I200: 0.0000
... 15 more rows

Sheet 湖南同力
A1: 附表2： | D1: 、
A2: 湖南同力环保科技有限公司2025年第4季度拆解产物产生、处理明细表
A3: 废物名称 | B3: 编码 | C3: 上期结存（吨） | D3: 本期产生量 （吨） | E3: 盘盈 (吨) | F3: 本期处理量 （吨） | G3: 盘亏 (吨) | H3: 本期处理量明细 | J3: 库存量（吨）
H4: 重量 | I4: 处理单位
A5: CRT电视机-CRT玻璃 | B5: E-01-01-01 | C5: 4.2190 | D5: 2.6085 | E5: 0.0000 | F5: 4.2190 | G5: 0.0000 | H5: 4.2190 | I5: 聊城晶悦玻璃原料有限公司 | J5: =C5+D5+E5-F5-G5 -> 2.6085
A6: CRT电视机-锥玻璃 | B6: E-01-02-01 | C6: 23.3600 | D6: 147.7975 | E6: 0.0000 | F6: 127.0500 | G6: 0.0000 | H6: 127.0500 | I6: 汨罗万容固体废物处理有限公司 | J6: 44.1075
A7: CRT电视机-屏玻璃 | B7: E-01-03-01 | C7: 41.2445 | D7: 269.9305 | E7: 0.0000 | F7: 300.9670 | G7: 0.0000 | H7: =195.887+105.08 -> 300.9670 | I7: 聊城晶悦玻璃原料有限公司 | J7: 10.2080
A8: CRT电视机-电子枪玻璃 | B8: E-01-06-01 | C8: 0.9700 | D8: 1.3375 | E8: 0.0000 | F8: 2.0020 | G8: 0.0000 | H8: 2.0020 | I8: 汨罗万容固体废物处理有限公司 | J8: 0.3055
A9: 冰箱-废矿物油 | B9: D-01-03-01 | C9: 1.6170 | D9: 5.5695 | E9: 0.0000 | F9: 6.8600 | G9: 0.0000 | H9: 6.8600 | I9: 远大（湖南）再生资源股份有限公司 | J9: 0.3265
A10: 空调-废矿物油 | B10: D-01-03-02 | C10: 1.9310 | D10: 14.8010 | E10: 0.0000 | F10: 16.1600 | G10: 0.0000 | H10: =11.75+4.41 -> 16.1600 | I10: 远大（湖南）再生资源股份有限公司 | J10: 0.5720
A11: 保温层材料 | B11: G-01-04-01 | C11: 25.9370 | D11: 761.1740 | E11: 0.0000 | F11: 786.8380 | G11: 0.2730 | H11: 786.8380 | I11: 湖南郡博环保有限公司 | J11: -0.0000
A12: 电冰箱-保温层材料 | B12: G-01-05-03 | C12: 0.0000 | D12: 604.7095 | E12: 0.0000 | F12: 589.3700 | G12: 0.6500 | H12: 589.3700 | I12: 湖南郡博环保有限公司 | J12: 14.6895
A13: 印刷线路板(小板14-21寸彩) | B13: F-01-07-03 | C13: 3.6775 | D13: 3.6785 | E13: 0.0015 | F13: 7.3575 | G13: 0.0000 | H13: 7.3575 | I13: 湖北省华中再生资源有限公司 | J13: 0.0000
A14: 印刷线路板(大板25-34寸彩) | B14: F-01-07-02-A | C14: 8.6115 | D14: 4.2385 | E14: 0.0015 | F14: 12.8515 | G14: 0.0000 | H14: =8.6115+4.24 -> 12.8515 | I14: 湖北省华中再生资源有限公司 | J14: -0.0000
A15: CRT电视机-彩色电视机电路板 | B15: F-01-07-02 | C15: 0.0000 | D15: 22.3360 | E15: 0.0000 | F15: 13.9280 | G15: 0.0000 | H15: 13.9280 | I15: 湖北省华中再生资源有限公司 | J15: 8.4080
A16: CRT电视机-黑白电视机电路板 | B16: F-01-07-04 | C16: 0.2345 | D16: 0.2920 | E16: 0.0035 | F16: 0.5260 | G16: 0.0040 | H16: 0.5260 | I16: 湖北省华中再生资源有限公司 | J16: -0.0000
A17: 电脑主机-印刷电路板 | B17: F-01-07-06 | C17: 2.8295 | D17: 9.1205 | E17: 0.0035 | F17: 11.9535 | G17: 0.0000 | H17: =7.718+4.2355 -> 11.9535 | I17: 湖北省华中再生资源有限公司 | J17: 0.0000
A18: 洗衣机-印刷电路板 | B18: F-01-07-16 | C18: 6.8360 | D18: 47.3865 | E18: 0.0000 | F18: 49.7850 | G18: 0.0000 | H18: 49.7850 | I18: 湖北省华中再生资源有限公司 | J18: 4.4375
A19: 空调-印刷电路板 | B19: F-01-07-18 | C19: 18.3400 | D19: 27.7660 | E19: 0.0065 | F19: 44.2440 | G19: 0.0000 | H19: 44.2440 | I19: 湖北省华中再生资源有限公司 | J19: 1.8685
A20: 电冰箱-印刷电路板 | B20: F-01-07-17 | C20: 0.2455 | D20: 1.7350 | E20: 0.0000 | F20: 1.8420 | G20: 0.0000 | H20: 1.8420 | I20: 湖北省华中再生资源有限公司 | J20: 0.1385
A21: 笔记本电脑-印刷电路板 | B21: F-01-07-12 | C21: 2.4180 | D21: 43.6305 | E21: 0.0005 | F21: 46.0490 | G21: 0.0000 | H21: 46.0490 | I21: 湖北省华中再生资源有限公司 | J21: 0.0000
A22: 笔记本电脑-边板 | B22: F-01-07-13 | C22: 0.0915 | D22: 1.6915 | E22: 0.0000 | F22: 1.7830 | G22: 0.0000 | H22: 1.7830 | I22: 湖北省华中再生资源有限公司 | J22: 0.0000
A23: 液晶显示器-高压电路板 | B23: F-01-07-19 | C23: 0.0000 | D23: 1.4685 | E23: 0.0000 | F23: 1.4650 | G23: 0.0035 | H23: 1.4650 | I23: 湖北省华中再生资源有限公司 | J23: -0.0000
A24: 液晶显示器-电源板 | B24: F-01-07-28 | C24: 3.9835 | D24: 4.5950 | E24: 0.0000 | F24: 8.5785 | G24: 0.0000 | H24: 8.5785 | I24: 湖北省华中再生资源有限公司 | J24: 0.0000
A25: 液晶电视机-主控板 | B25: F-01-07-26 | C25: 0.0000 | D25: 6.6575 | E25: 0.0000 | F25: 3.9970 | G25: 0.0000 | H25: 3.9970 | I25: 湖北省华中再生资源有限公司 | J25: 2.6605
A26: 液晶电视机-驱动线路板 | B26: F-01-07-25-A | C26: 0.8810 | D26: 0.0000 | E26: 0.0000 | F26: 0.8770 | G26: 0.0040 | H26: 0.8770 | I26: 湖北省华中再生资源有限公司 | J26: 0.0000
A27: 液晶电视机-逻辑控制板 | B27: F-01-07-25 | C27: 0.0000 | D27: 1.8715 | E27: 0.0000 | F27: 1.2460 | G27: 0.0000 | H27: 1.2460 | I27: 湖北省华中再生资源有限公司 | J27: 0.6255
A28: 液晶电视机-高压电路板 | B28: F-01-07-24 | C28: 0.0000 | D28: 4.5605 | E28: 0.0045 | F28: 3.1980 | G28: 0.0000 | H28: 3.1980 | I28: 湖北省华中再生资源有限公司 | J28: 1.3670
A29: 电冰箱-铝质压缩机 | B29: F-01-03-04 | C29: 35.6460 | D29: 300.4420 | E29: 0.1670 | F29: 237.3750 | G29: 0.0000 | H29: 33.5990 | I29: 天津恒丰运业金属制品有限公司 | J29: 98.8800
H30: 33.4600 | I30: 天津通亿顺金属制品有限公司
H31: 170.3160 | I31: 天津永俊金属制品有限公司
A32: 电冰箱-铜质压缩机 | B32: F-01-03-05 | C32: 9.1975 | D32: 616.9660 | E32: 0.0710 | F32: 591.0800 | G32: 0.0000 | H32: 71.2930 | I32: 天津博瑞特金属制品有限公司 | J32: =C32+D32+E32-F32-G32 -> 35.1545
H33: 137.3150 | I33: 天津恒丰运业金属制品有限公司
H34: 347.2080 | I34: 天津凯成发金属制品有限公司
H35: 35.2640 | I35: 天津荣和金属制品有限公司
A36: 空调-变频压缩机 | B36: F-01-03-03 | C36: 0.0000 | D36: 6.1900 | E36: 0.0000 | F36: 0.0000 | G36: 0.0000 | H36: 0.0000 | I36: —— | J36: 6.1900
A37: 空调-压缩机 | B37: F-01-03-02 | C37: 23.7140 | D37: 995.7230 | E37: 0.2160 | F37: 995.9170 | G37: 0.0000 | H37: 68.7830 | I37: 天津奥尼斯特物产开发有限公司 | J37: 23.7360
H38: 211.7590 | I38: 天津恒丰运业金属制品有限公司
H39: 277.9590 | I39: 天津凯成发金属制品有限公司
H40: 74.9290 | I40: 天津凯撒金属有限公司
H41: 34.5370 | I41: 天津荣和金属制品有限公司
H42: 70.5920 | I42: 天津通亿顺金属制品有限公司
H43: 257.3580 | I43: 天津永俊金属制品有限公司
A44: 洗衣机电动机（铝） | B44: F-01-04-06-A | C44: 50.6250 | D44: 187.7545 | E44: 0.0390 | F44: 238.4185 | G44: 0.0000 | H44: 57.8885 | I44: 临沂恒昌金属制品有限公司 | J44: =C44+D44+E44-F44-G44 -> 0.0000
H45: 85.4990 | I45: 天津埃莫森铜业有限公司
H46: 18.2190 | I46: 天津诺康金属制品有限公司
H47: 76.8120 | I47: 天津荣和金属制品有限公司
A48: 洗衣机电动机（铜） | B48: F-01-04-01-A | C48: 41.1575 | D48: 108.3725 | E48: 0.0260 | F48: 149.5560 | G48: 0.0000 | H48: 67.5970 | I48: 临沂恒昌金属制品有限公司 | J48: =C48+D48+E48-F48-G48 -> 0.0000
H49: 20.1880 | I49: 天津开泰金属制品有限公司
H50: 28.2660 | I50: 天津诺康金属制品有限公司
H51: 33.5050 | I51: 天津中商瑞隆金属制品有限公司
A52: 滚筒洗衣机铜芯电动机 | B52: F-01-04-05 | C52: 0.0000 | D52: 2.5220 | E52: 0.0000 | F52: 2.5220 | G52: 0.0000 | H52: 2.5220 | I52: 天津诺康金属制品有限公司 | J52: 0.0000
A53: 滚筒洗衣机铝芯电动机 | B53: F-01-04-10 | C53: 0.0000 | D53: 4.0180 | E53: 0.0000 | F53: 4.0180 | G53: 0.0000 | H53: 1.5975 | I53: 临沂恒昌金属制品有限公司 | J53: 0.0000
H54: 2.4205 | I54: 天津埃莫森铜业有限公司
A55: 单缸洗衣机铜芯电动机 | B55: F-01-04-01 | C55: 0.0000 | D55: 1.3950 | E55: 0.0000 | F55: 1.3950 | G55: 0.0000 | H55: 1.3950 | I55: 天津诺康金属制品有限公司 | J55: =C55+D55+E55-F55-G55 -> 0.0000
A56: 单缸洗衣机铝芯电动机 | B56: F-01-04-06 | C56: 0.0000 | D56: 6.4770 | E56: 0.0000 | F56: 6.4770 | G56: 0.0000 | H56: 3.4370 | I56: 临沂恒昌金属制品有限公司 | J56: 0.0000
H57: 3.0400 | I57: 天津埃莫森铜业有限公司
A58: 双缸洗衣机带脚铜芯电动机 | B58: F-01-04-02 | C58: 0.0000 | D58: 15.8790 | E58: 0.0000 | F58: 15.8410 | G58: 0.0000 | H58: 15.8410 | I58: 天津诺康金属制品有限公司 | J58: 0.0380
A59: 双缸洗衣机带脚铝芯电动机 | B59: F-01-04-07 | C59: 0.0000 | D59: 24.1195 | E59: 0.0000 | F59: 24.1195 | G59: 0.0000 | H59: 17.4610 | I59: 临沂恒昌金属制品有限公司 | J59: 0.0000
H60: 6.6585 | I60: 天津埃莫森铜业有限公司
A61: 全自动洗衣机铜芯电动机 | B61: F-01-04-04 | C61: 0.0000 | D61: 19.1255 | E61: 0.0000 | F61: 19.1255 | G61: 0.0000 | H61: 19.1255 | I61: 天津诺康金属制品有限公司 | J61: =C61+D61+E61-F61-G61 -> 0.0000
A62: 全自动洗衣机铝芯电动机 | B62: F-01-04-09 | C62: 0.0000 | D62: 78.7675 | E62: 0.0000 | F62: 70.4120 | G62: 0.0000 | H62: 62.7440 | I62: 临沂恒昌金属制品有限公司 | J62: 8.3555
H63: 7.6680 | I63: 天津埃莫森铜业有限公司
A64: 全自动洗衣机铝壳铜芯电动机机 | B64: F-01-04-20 | C64: 0.0000 | D64: 17.0670 | E64: 0.0000 | F64: 17.0670 | G64: 0.0000 | H64: 17.0670 | I64: 临沂恒昌金属制品有限公司 | J64: 0.0000
A65: 空调冷凝器 | B65: F-01-15-02-A | C65: 29.0185 | D65: 134.5315 | E65: 0.0250 | F65: 163.5750 | G65: 0.0000 | H65: 60.1700 | I65: 湖南绿色再生资源有限公司 | J65: -0.0000
H66: 73.1450 | I66: 湖南同力二次加工
H67: 30.2600 | I67: 汨罗市旺赢新材料有限公司
A68: 壁挂式空调冷凝器 | B68: F-01-15-03 | C68: 0.0000 | D68: 149.6675 | E68: 0.0000 | F68: 149.6675 | G68: 0.0000 | H68: 149.6675 | I68: 湖南同力二次加工 | J68: =C68+D68+E68-F68-G68 -> 0.0000
A69: 空调蒸发器 | B69: F-01-14-01-A | C69: 9.5530 | D69: 77.1250 | E69: 0.0000 | F69: 86.6780 | G69: 0.0000 | H69: 39.3180 | I69: 湖南同力二次加工 | J69: -0.0000
H70: 18.3900 | I70: 汨罗市伟业有色金属有限公司
H71: 28.9700 | I71: 天津博瑞特金属制品有限公司
A72: 壁挂式空调蒸发器 | B72: F-01-14-02 | C72: 0.0000 | D72: 79.7480 | E72: 0.0000 | F72: 79.7480 | G72: 0.0000 | H72: 79.7480 | I72: 湖南同力二次加工 | J72: 0.0000
A73: 笔记本电脑-液晶面板 | B73: F-01-22-03 | C73: 9.2960 | D73: 23.4855 | E73: 0.0000 | F73: 32.7815 | G73: 0.0000 | H73: 32.7815 | I73: 株洲恒基资源再生有限公司 | J73: 0.0000
A74: 笔记本电脑-背光源LED灯 | B74: F-01-23-03 | C74: 0.0495 | D74: 0.1870 | E74: 0.0000 | F74: 0.2365 | G74: 0.0000 | H74: 0.0340 | I74: 天津凯撒金属有限公司 | J74: 0.0000 | K74: 光源
H75: 0.2025 | I75: 天津永俊金属制品有限公司 | K75: 光源
A76: 笔记本电脑含汞背光灯管 | B76: F-01-24-03 | C76: 0.0520 | D76: 0.0275 | E76: 0.0005 | F76: 0.0800 | G76: 0.0000 | H76: 0.0800 | I76: 陕西安信显像管循环处理应用有限公司 | J76: =C76+D76+E76-F76-G76 -> 0.0000 | K76: 光源
A77: 液晶显示器-液晶面板 | B77: F-01-22-02 | C77: 49.0805 | D77: 10.0785 | E77: 0.0000 | F77: 59.1590 | G77: 0.0000 | H77: 59.1590 | I77: 株洲恒基资源再生有限公司 | J77: 0.0000
A78: 液晶显示器背光源-LED灯 | B78: F-01-23-02 | C78: 0.1385 | D78: 0.0530 | E78: 0.0000 | F78: 0.1915 | G78: 0.0000 | H78: 0.1915 | I78: 天津永俊金属制品有限公司 | J78: 0.0000 | K78: 光源
A79: 液晶显示器-含汞背光灯管 | B79: F-01-24-02 | C79: 0.6910 | D79: 0.1155 | E79: 0.0025 | F79: 0.7900 | G79: 0.0000 | H79: 0.7900 | I79: 陕西安信显像管循环处理应用有限公司 | J79: 0.0190 | K79: 光源
A80: 液晶电视机-液晶面板 | B80: F-01-22-01 | C80: 17.3990 | D80: 27.6800 | E80: 0.0000 | F80: 33.6930 | G80: 0.0000 | H80: 33.6930 | I80: 株洲恒基资源再生有限公司 | J80: 11.3860
A81: 液晶电视机-LED灯 | B81: F-01-23-01 | C81: 0.5300 | D81: 0.5715 | E81: 0.0000 | F81: 0.0000 | G81: 0.0000 | H81: 0.0000 | I81: —— | J81: 1.1015 | K81: 光源
A82: 液晶电视机-含汞背光灯管 | B82: F-01-24-01 | C82: 0.1080 | D82: 0.2145 | E82: 0.0020 | F82: 0.1100 | G82: 0.0000 | H82: 0.1100 | I82: 陕西安信显像管循环处理应用有限公司 | J82: 0.2145 | K82: 光源
A83: 电脑主机-电源 | B83: F-01-11-01 | C83: 3.2300 | D83: 22.8620 | E83: 0.0000 | F83: 26.0920 | G83: 0.0000 | H83: 26.0920 | I83: 天津永俊金属制品有限公司 | J83: 0.0000
A84: CRT电视机-荧光粉 | B84: G-01-02-01 | C84: 0.1890 | D84: 0.0140 | E84: 0.0040 | F84: 0.1930 | G84: 0.0000 | H84: 0.1930 | I84: 湖南瀚洋环保科技有限公司 | J84: 0.0140
A85: 电冰箱-非异丁烷制冷剂 | B85: D-01-02-01 | C85: 0.0000 | D85: 0.0015 | E85: 0.0000 | F85: 0.0000 | G85: 0.0000 | H85: 0.0000 | I85: —— | J85: 0.0015
A86: 空调-非异丁烷制冷剂 | B86: D-01-02-02 | C86: 0.4015 | D86: 20.8100 | E86: 0.0000 | F86: 18.3930 | G86: 0.0000 | H86: 18.3930 | I86: 邵武永和金塘新材料有限公司 | J86: 2.8185
A87: 三类铜质线圈（偏转线圈1#） | B87: F-01-02-01-A | C87: 0.0645 | D87: 0.0000 | E87: 0.0000 | F87: 0.0645 | G87: 0.0000 | H87: 0.0645 | I87: 天津科盟环保科技有限公司 | J87: 0.0000
A88: CRT电视机-偏转线圈（彩色） | B88: F-01-02-01 | C88: 0.0000 | D88: 12.5595 | E88: 0.0000 | F88: 9.0035 | G88: 0.0000 | H88: 9.0035 | I88: 天津科盟环保科技有限公司 | J88: 3.5560
A89: 一类铜质线圈（偏转线圈2#） | B89: F-01-02-02 | C89: 1.8960 | D89: 4.4520 | E89: 0.0000 | F89: 6.3480 | G89: 0.0000 | H89: 6.3480 | I89: 天津科盟环保科技有限公司 | J89: 0.0000
A90: CRT电视机-偏转线圈（黑白） | B90: F-01-02-03 | C90: 0.0000 | D90: 0.0805 | E90: 0.0000 | F90: 0.0000 | G90: 0.0000 | H90: 0.0000 | I90: —— | J90: 0.0805
A91: CRT电视机-防波线 | B91: G-01-03-13 | C91: 0.2690 | D91: 0.0995 | E91: 0.0000 | F91: 0.0000 | G91: 0.0000 | H91: 0.0000 | I91: —— | J91: 0.3685
A92: 电冰箱-铜管 | B92: B-01-01-01 | C92: 0.0000 | D92: 0.7510 | E92: 0.0000 | F92: 0.5080 | G92: 0.0000 | H92: 0.5080 | I92: 天津科盟环保科技有限公司 | J92: 0.2430
A93: 电冰箱-破碎铜 | B93: B-01-01-02 | C93: 0.0000 | D93: 14.5035 | E93: 0.0000 | F93: 9.1790 | G93: 0.0000 | H93: 9.1790 | I93: 天津科盟环保科技有限公司 | J93: 5.3245
A94: 电冰箱-电磁阀 | B94: B-01-01-06 | C94: 0.0000 | D94: 0.1780 | E94: 0.0000 | F94: 0.0000 | G94: 0.0000 | H94: 0.0000 | I94: —— | J94: 0.1780
A95: 冰箱铜管 | B95: B-01-01-06-A | C95: 6.2780 | D95: 23.2375 | E95: 0.0060 | F95: 29.5215 | G95: 0.0000 | H95: 1.5220 | I95: 天津奥尼斯特物产开发有限公司 | J95: -0.0000
H96: 0.4990 | I96: 天津博瑞特金属制品有限公司
H97: 11.1440 | I97: 天津恒丰运业金属制品有限公司
H98: 16.3565 | I98: 天津科盟环保科技有限公司
A99: 空调-铜管 | B99: B-01-01-03 | C99: 5.9150 | D99: 84.8420 | E99: 0.0000 | F99: 88.2510 | G99: 0.0000 | H99: 32.8700 | I99: 天津奥尼斯特物产开发有限公司 | J99: =C99+D99+E99-F99-G99 -> 2.5060
H100: 45.9680 | I100: 天津恒丰运业金属制品有限公司
H101: 9.4130 | I101: 天津凯成发金属制品有限公司
A102: 空调-铜质阀门 | B102: B-01-01-04 | C102: 0.0000 | D102: 5.7865 | E102: 0.0000 | F102: 5.2055 | G102: 0.0000 | H102: 5.2055 | I102: 天津奥尼斯特物产开发有限公司 | J102: 0.5810
A103: 空调-四通阀 | B103: B-01-01-08 | C103: 0.0000 | D103: 4.8920 | E103: 0.0000 | F103: 4.4770 | G103: 0.0000 | H103: 4.4770 | I103: 天津恒丰运业金属制品有限公司 | J103: 0.4150
A104: 空调-带铁铜管 | B104: B-01-01-09 | C104: 0.0000 | D104: 0.7340 | E104: 0.0000 | F104: 0.0000 | G104: 0.0000 | H104: 0.0000 | I104: —— | J104: 0.7340
A105: CRT电视机-变压器 | B105: F-01-20-01 | C105: 1.0990 | D105: 0.4335 | E105: 0.0000 | F105: 0.0000 | G105: 0.0000 | H105: 0.0000 | I105: —— | J105: 1.5325
A106: 空调-变压器 | B106: F-01-20-03 | C106: 6.4735 | D106: 34.1030 | E106: 0.0710 | F106: 37.2700 | G106: 0.0000 | H106: 14.4500 | I106: 临沂恒昌金属制品有限公司 | J106: 3.3775
H107: 22.8200 | I107: 天津中商瑞隆金属制品有限公司
A108: 电容器 | B108: F-01-05-02-A | C108: 0.8495 | D108: 10.9650 | E108: 0.0490 | F108: 11.8635 | G108: 0.0000 | H108: 7.0680 | I108: 天津凯撒金属有限公司 | J108: =C108+D108+E108-F108-G108 -> 0.0000
H109: 4.7955 | I109: 天津科盟环保科技有限公司
A110: 空调-电容器 | B110: F-01-05-01 | C110: 0.0630 | D110: 15.8125 | E110: 0.0530 | F110: 10.7920 | G110: 0.0000 | H110: 10.7920 | I110: 天津科盟环保科技有限公司 | J110: 5.1365
A111: 洗衣机-电容器 | B111: F-01-05-02 | C111: 0.0000 | D111: 4.8365 | E111: 0.0000 | F111: 0.0000 | G111: 0.0000 | H111: 0.0000 | I111: —— | J111: 4.8365
A112: 电冰箱-电容器 | B112: F-01-05-03 | C112: 0.0000 | D112: 1.4125 | E112: 0.0000 | F112: 0.0000 | G112: 0.0000 | H112: 0.0000 | I112: —— | J112: 1.4125
A113: 调谐器 | B113: F-01-19-01-A | C113: 0.6985 | D113: 0.0000 | E113: 0.0000 | F113: 0.6985 | G113: 0.0000 | H113: 0.6985 | I113: 天津通亿顺金属制品有限公司 | J113: 0.0000
A114: 洗衣机-铝外壳 | B114: B-01-02-04 | C114: 0.8650 | D114: 1.1290 | E114: 0.0000 | F114: 0.0000 | G114: 0.0000 | H114: 0.0000 | I114: —— | J114: 1.9940
A115: 电冰箱-破碎铝 | B115: B-01-02-03 | C115: 25.8345 | D115: 100.7085 | E115: 0.0000 | F115: 105.4940 | G115: 0.0000 | H115: 23.3450 | I115: 湖南西鼎新材料有限公司 | J115: 21.0490
H116: 25.0790 | I116: 天津荣和金属制品有限公司
H117: 25.4820 | I117: 天津开泰金属制品有限公司
H118: 31.5880 | I118: 天津凯撒金属有限公司
A119: 洗衣机-铸铝 | B119: B-01-02-05 | C119: 1.4890 | D119: 14.9665 | E119: 0.0000 | F119: 16.4555 | G119: 0.0000 | H119: 7.4335 | I119: 天津奥尼斯特物产开发有限公司 | J119: =C119+D119+E119-F119-G119 -> 0.0000
H120: 9.0220 | I120: 天津诺康金属制品有限公司
A121: 空调-杂铝 | B121: B-01-02-08 | C121: 0.0000 | D121: 0.6430 | E121: 0.0000 | F121: 0.0000 | G121: 0.0000 | H121: 0.0000 | I121: —— | J121: 0.6430
A122: 空调-内机铝加热棒 | B122: B-01-02-17 | C122: 0.0000 | D122: 4.0095 | E122: 0.0000 | F122: 0.0000 | G122: 0.0000 | H122: 0.0000 | I122: —— | J122: 4.0095
A123: 铜铝混合物 | B123: B-01-02-01 | C123: 2.9695 | D123: 1.1905 | E123: 0.0000 | F123: 4.1600 | G123: 0.0000 | H123: 2.6100 | I123: 天津诺康金属制品有限公司 | J123: 0.0000
H124: 1.5500 | I124: 天津永俊金属制品有限公司
A125: 笔记本电脑-铝 | B125: B-01-02-13 | C125: 4.0670 | D125: 13.7905 | E125: 0.0000 | F125: 17.8575 | G125: 0.0000 | H125: 1.7890 | I125: 天津凯撒金属有限公司 | J125: =C125+D125+E125-F125-G125 -> 0.0000
H126: 16.0685 | I126: 天津永俊金属制品有限公司
A127: 液晶显示器-铝 | B127: B-01-02-09 | C127: 6.9230 | D127: 1.3200 | E127: 0.0000 | F127: 8.2430 | G127: 0.0000 | H127: 8.2430 | I127: 天津永俊金属制品有限公司 | J127: 0.0000
A128: 液晶电视机-铝 | B128: B-01-02-10 | C128: 0.6290 | D128: 6.9180 | E128: 0.0000 | F128: 0.0000 | G128: 0.0000 | H128: 0.0000 | I128: —— | J128: 7.5470
A129: CRT电视机-防爆带 | B129: B-02-01-04 | C129: 2.6955 | D129: 19.5545 | E129: 0.0000 | F129: 13.6400 | G129: 0.0000 | H129: 13.6400 | I129: 汨罗市和盛废旧物资有限公司 | J129: 8.6100
A130: 电脑主机-铁 | B130: B-02-01-07 | C130: 27.2650 | D130: 73.9585 | E130: 0.0000 | F130: 101.2235 | G130: 0.0000 | H130: =37.46+49.76 -> 87.2200 | I130: 汨罗市和盛废旧物资有限公司 | J130: 0.0000
H131: 14.0035 | I131: 天津永俊金属制品有限公司
A132: 电冰箱-铁 | B132: B-02-01-08 | C132: 8.3330 | D132: 128.0795 | E132: 0.0000 | F132: 124.1400 | G132: 0.0000 | H132: =72.71+51.43 -> 124.1400 | I132: 汨罗市和盛废旧物资有限公司 | J132: =C132+D132+E132-F132-G132 -> 12.2725
A133: 洗衣机-铁 | B133: B-02-01-15 | C133: 25.3525 | D133: 575.0375 | E133: 0.1870 | F133: 597.2100 | G133: 0.0000 | H133: 597.2100 | I133: 汨罗市和盛废旧物资有限公司 | J133: 3.3670
A134: 笔记本电脑-铁 | B134: B-02-01-23 | C134: 5.9155 | D134: 21.9620 | E134: 0.0000 | F134: 27.8775 | G134: 0.0000 | H134: 3.4080 | I134: 天津凯撒金属有限公司 | J134: 0.0000
H135: 24.4695 | I135: 天津永俊金属制品有限公司
A136: 空调-铁 | B136: B-02-01-16 | C136: 0.0370 | D136: 745.6140 | E136: 0.1960 | F136: 721.3710 | G136: 0.0000 | H136: =378.583+336.51 -> 715.0930 | I136: 汨罗市和盛废旧物资有限公司 | J136: =C136+D136+E136-F136-G136 -> 24.4760
H137: 6.2780 | I137: 天津通亿顺金属制品有限公司
A138: 液晶显示器-铁 | B138: B-02-01-11 | C138: 20.1005 | D138: 28.9925 | E138: 0.0000 | F138: 49.0930 | G138: 0.0000 | H138: 49.0930 | I138: 汨罗市和盛废旧物资有限公司 | J138: 0.0000
A139: 液晶电视机-铁 | B139: B-02-01-12 | C139: 2.7760 | D139: 40.1725 | E139: 0.0000 | F139: 20.8500 | G139: 0.0000 | H139: 20.8500 | I139: 汨罗市和盛废旧物资有限公司 | J139: 22.0985
A140: CRT电视机-荫罩不锈钢卡片 | B140: B-02-01-18 | C140: 0.3570 | D140: 0.8060 | E140: 0.0000 | F140: 0.0000 | G140: 0.0000 | H140: 0.0000 | I140: —— | J140: 1.1630
A141: 荫罩-镍网 | B141: B-04-02-02-A | C141: 0.5525 | D141: 0.3860 | E141: 0.0000 | F141: 0.9385 | G141: 0.0000 | H141: 0.9385 | I141: 天津永俊金属制品有限公司 | J141: 0.0000
A142: CRT电视机-荫罩铁 | B142: B-02-01-19 | C142: 2.8985 | D142: 22.0910 | E142: 0.0000 | F142: 20.4910 | G142: 0.0000 | H142: =11.641+8.85 -> 20.4910 | I142: 汨罗市和盛废旧物资有限公司 | J142: 4.4985
A143: 电冰箱-破碎铁 | B143: B-02-01-09 | C143: 20.3530 | D143: 1954.2365 | E143: 0.0000 | F143: 1953.8500 | G143: 0.0000 | H143: =932.82+1021.03 -> 1953.8500 | I143: 汨罗市和盛废旧物资有限公司 | J143: 20.7395
A144: CRT电视机-杂铁 | B144: B-02-01-25 | C144: 0.0000 | D144: 1.4525 | E144: 0.0000 | F144: 0.0000 | G144: 0.0000 | H144: 0.0000 | I144: —— | J144: 1.4525
A145: 涡轮铁 | B145: B-02-01-30 | C145: 11.1675 | D145: 312.1645 | E145: 0.0000 | F145: 323.3320 | G145: 0.0000 | H145: 323.3320 | I145: 天津永俊金属制品有限公司 | J145: 0.0000
A146: 洗衣机-不锈铁 | B146: B-02-01-14 | C146: 8.0130 | D146: 145.7435 | E146: 0.3840 | F146: 153.9465 | G146: 0.0000 | H146: =91.84+62.1065 -> 153.9465 | I146: 湖南兴川耐火材料有限公司 | J146: 0.1940
A147: 洗衣机轴铁 | B147: B-02-01-31 | C147: 3.0145 | D147: 5.2575 | E147: 0.0000 | F147: 8.2720 | G147: 0.0000 | H147: 8.2720 | I147: 天津科盟环保科技有限公司 | J147: 0.0000
A148: 洗衣机-加热管 | B148: B-02-01-34 | C148: 0.0000 | D148: 0.3720 | E148: 0.0000 | F148: 0.0000 | G148: 0.0000 | H148: 0.0000 | I148: —— | J148: 0.3720
A149: 电冰箱-门轴 | B149: B-02-01-36 | C149: 0.0000 | D149: 0.8280 | E149: 0.0000 | F149: 0.0000 | G149: 0.0000 | H149: 0.0000 | I149: —— | J149: 0.8280
A150: 洗衣机-转轴铁 | B150: B-02-01-38 | C150: 0.0000 | D150: 3.7750 | E150: 0.0000 | F150: 0.0000 | G150: 0.0000 | H150: 0.0000 | I150: —— | J150: 3.7750
A151: 冰箱转轴铁 | B151: B-02-01-36-A | C151: 2.0240 | D151: 1.3610 | E151: 0.0000 | F151: 3.3850 | G151: 0.0000 | H151: 3.3850 | I151: 天津通亿顺金属制品有限公司 | J151: 0.0000
A152: 扬声器 | B152: F-01-09-01-A | C152: 5.3510 | D152: 2.4475 | E152: 0.0000 | F152: 7.7985 | G152: 0.0000 | H152: 7.7985 | I152: 临沂恒昌金属制品有限公司 | J152: -0.0000
A153: CRT电视机-扬声器 | B153: F-01-09-01 | C153: 0.0000 | D153: 7.0585 | E153: 0.0000 | F153: 5.2455 | G153: 0.0000 | H153: 5.2455 | I153: 临沂恒昌金属制品有限公司 | J153: 1.8130
A154: 液晶电视机-扬声器 | B154: F-01-09-06 | C154: 0.7500 | D154: 4.8515 | E154: 0.0000 | F154: 0.0000 | G154: 0.0000 | H154: 0.0000 | I154: —— | J154: 5.6015
A155: 液晶显示器-扬声器 | B155: F-01-09-03 | C155: 0.1720 | D155: 0.0300 | E155: 0.0000 | F155: 0.2020 | G155: 0.0000 | H155: 0.2020 | I155: 天津永俊金属制品有限公司 | J155: 0.0000
A156: 笔记本电脑-扬声器 | B156: F-01-09-05 | C156: 0.4775 | D156: 1.7545 | E156: 0.0000 | F156: 2.2320 | G156: 0.0000 | H156: 0.2615 | I156: 天津凯撒金属有限公司 | J156: 0.0000
H157: 1.9705 | I157: 天津永俊金属制品有限公司
A158: 天线座 | B158: B-01-01-07-05 | C158: 0.1895 | D158: 0.0000 | E158: 0.0000 | F158: 0.1895 | G158: 0.0000 | H158: 0.1895 | I158: 天津永俊金属制品有限公司 | J158: =C158+D158+E158-F158-G158 -> 0.0000
A159: 废卡扣 | B159: B-02-01-20 | C159: 0.8150 | D159: 0.0185 | E159: 0.0000 | F159: 0.8335 | G159: 0.0000 | H159: 0.8335 | I159: 天津永俊金属制品有限公司 | J159: -0.0000
A160: CRT电视机-荫罩镍网 | B160: B-04-02-01 | C160: 0.0000 | D160: 0.9495 | E160: 0.0000 | F160: 0.0000 | G160: 0.0000 | H160: 0.0000 | I160: —— | J160: 0.9495
A161: CRT电视机-电子枪金属 | B161: B-04-02-03 | C161: 0.0000 | D161: 0.6600 | E161: 0.0460 | F161: 0.4415 | G161: 0.0000 | H161: 0.4415 | I161: 天津诺康金属制品有限公司 | J161: 0.2645
A162: 塑料外壳 | B162: C-04-01-01 | C162: 0.0000 | D162: 26.9445 | E162: 0.0000 | F162: 26.9445 | G162: 0.0000 | H162: 26.9445 | I162: 湖南同力二次加工 | J162: 0.0000
A163: 面板按钮 | B163: C-03-01-02-TL | C163: 0.0560 | D163: 0.0000 | E163: 0.0000 | F163: 0.0560 | G163: 0.0000 | H163: 0.0560 | I163: 天津永俊金属制品有限公司 | J163: 0.0000
A164: 洗衣机塑料 | B164: C-04-01-02 | C164: 0.0000 | D164: 794.7590 | E164: 0.0000 | F164: 794.7590 | G164: 0.0000 | H164: 794.7590 | I164: 湖南同力二次加工 | J164: 0.0000
A165: 洗衣机-塑料尾料 | B165: C-03-01-12 | C165: 0.0000 | D165: 1.7025 | E165: 0.0000 | F165: 0.0000 | G165: 0.0000 | H165: 0.0000 | I165: —— | J165: 1.7025
A166: 洗衣机减速器（增强轮） | B166: C-03-01-29 | C166: 4.5150 | D166: 4.3165 | E166: 0.0000 | F166: 8.8315 | G166: 0.0000 | H166: 2.8035 | I166: 天津诺康金属制品有限公司 | J166: 0.0000
H167: 6.0280 | I167: 天津永俊金属制品有限公司
A168: 洗衣机增强轮（PI6） | B168: C-01-11-02 | C168: 0.1515 | D168: 3.2695 | E168: 0.0000 | F168: 3.4210 | G168: 0.0000 | H168: 3.4210 | I168: 天津永俊金属制品有限公司 | J168: =C168+D168+E168-F168-G168 -> 0.0000
A169: 洗衣机-尼龙塑料 | B169: C-03-01-41 | C169: 0.4780 | D169: 7.3075 | E169: 0.0000 | F169: 7.7855 | G169: 0.0000 | H169: 7.7855 | I169: 天津奥尼斯特物产开发有限公司 | J169: 0.0000
A170: 洗衣机-尼龙塑料 | B170: C-01-11-13 | C170: 0.0000 | D170: 4.4400 | E170: 0.0000 | F170: 2.0065 | G170: 0.0000 | H170: 2.0065 | I170: 天津奥尼斯特物产开发有限公司 | J170: 2.4335
A171: 电冰箱-塑料 | B171: C-04-01-04 | C171: 139.5725 | D171: 442.3055 | E171: 0.0000 | F171: 581.8780 | G171: 0.0000 | H171: 58.0040 | I171: 清远市宏鑫塑料五金有限公司 | J171: 0.0000
H172: 150.0760 | I172: 韶关鑫山塑料有限公司
H173: =28.338+55.509 -> 83.8470 | I173: 天津凯成发金属制品有限公司
H174: 174.5280 | I174: 铜陵康塑源环保科技有限公司
H175: 7.2515 | I175: 湖南同力二次加工
H176: 108.1715 | I176: 清远市宏鑫塑料五金有限公司
A177: 冰箱塑料（屉子） | B177: C-01-10-02 | C177: 0.0000 | D177: 1.7500 | E177: 0.0000 | F177: 1.7500 | G177: 0.0000 | H177: 1.7500 | I177: 湖南同力二次加工 | J177: =C177+D177+E177-F177-G177 -> 0.0000
A178: 电冰箱-混合塑料 | B178: C-04-01-21 | C178: 0.0000 | D178: 364.5180 | E178: 0.0000 | F178: 212.9120 | G178: 0.0000 | H178: 87.7170 | I178: 青岛合家兴工贸有限公司 | J178: 151.6060
H179: 64.8650 | I179: 清远市宏鑫塑料五金有限公司
H180: 60.3300 | I180: 天津凯成发金属制品有限公司
A181: 冰柜-混合塑料 | B181: C-03-01-26 | C181: 34.1945 | D181: 60.2630 | E181: 0.0000 | F181: 83.7990 | G181: 0.0590 | H181: 26.1290 | I181: 青岛合家兴工贸有限公司 | J181: 10.5995
H182: 57.6700 | I182: 天津凯成发金属制品有限公司
A183: CRT电视机-杂塑料（含铁） | B183: C-03-01-28 | C183: 0.0000 | D183: 0.1255 | E183: 0.0000 | F183: 0.0000 | G183: 0.0000 | H183: 0.0000 | I183: —— | J183: =C183+D183+E183-F183-G183 -> 0.1255
A184: 电冰箱顶盖塑料 | B184: C-04-01-06 | C184: 0.0000 | D184: 5.2435 | E184: 0.0000 | F184: 5.2435 | G184: 0.0000 | H184: 5.2435 | I184: 湖南同力二次加工 | J184: 0.0000
A185: 电脑塑料 | B185: C-04-01-05-A | C185: 0.0000 | D185: 78.5610 | E185: 0.0000 | F185: 78.5610 | G185: 0.0000 | H185: 78.5610 | I185: 湖南同力二次加工 | J185: 0.0000
A186: 笔记本电脑-未破碎塑料 | B186: C-04-01-05 | C186: 0.0000 | D186: 3.9765 | E186: 0.0000 | F186: 3.9765 | G186: 0.0000 | H186: 3.9765 | I186: 湖南同力二次加工 | J186: 0.0000
A187: 空调塑料 | B187: C-04-01-03 | C187: 0.0000 | D187: 158.5095 | E187: 0.0000 | F187: 158.5095 | G187: 0.0000 | H187: 158.5095 | I187: 湖南同力二次加工 | J187: 0.0000
A188: 空调塑料(增强S） | B188: C-03-01-18 | C188: 0.0000 | D188: 37.9130 | E188: 0.0000 | F188: 37.9130 | G188: 0.0000 | H188: 37.9130 | I188: 湖南同力二次加工 | J188: 0.0000
A189: 杂塑 | B189: C-03-01-09-TL | C189: 1.6040 | D189: 0.0470 | E189: 0.0000 | F189: 1.6510 | G189: 0.0000 | H189: 1.6510 | I189: 天津永俊金属制品有限公司 | J189: 0.0000
A190: 笔记本电脑-导光板 | B190: C-01-09-06 | C190: 0.0000 | D190: 0.4450 | E190: 0.0000 | F190: 0.4450 | G190: 0.0000 | H190: 0.4450 | I190: 天津永俊金属制品有限公司 | J190: 0.0000
A191: 笔记本电脑-亚克力板 | B191: C-01-09-06-A | C191: 2.6620 | D191: 9.5765 | E191: 0.0000 | F191: 12.2385 | G191: 0.0000 | H191: 12.2385 | I191: 天津永俊金属制品有限公司 | J191: 0.0000
A192: 笔记本电脑-扩散片 | B192: C-03-01-20 | C192: 1.8805 | D192: 6.9760 | E192: 0.0000 | F192: 8.8565 | G192: 0.0000 | H192: 8.8565 | I192: 天津永俊金属制品有限公司 | J192: 0.0000
A193: 液晶显示器-导光板 | B193: C-01-09-03 | C193: 0.0225 | D193: 0.0395 | E193: 0.0000 | F193: 0.0620 | G193: 0.0000 | H193: 0.0620 | I193: 天津永俊金属制品有限公司 | J193: 0.0000
A194: 液晶显示器-亚克力板 | B194: C-01-09-04 | C194: 23.8355 | D194: 16.8115 | E194: 0.0000 | F194: 40.6470 | G194: 0.0000 | H194: 40.6470 | I194: 天津永俊金属制品有限公司 | J194: 0.0000
A195: 液晶显示器-扩散片 | B195: C-03-01-21-A | C195: 11.9535 | D195: 1.9885 | E195: 0.0000 | F195: 13.9420 | G195: 0.0000 | H195: 13.9420 | I195: 天津永俊金属制品有限公司 | J195: 0.0000
A196: 液晶显示器-扩散片 | B196: C-03-01-13 | C196: 0.0000 | D196: 0.5530 | E196: 0.0000 | F196: 0.5530 | G196: 0.0000 | H196: 0.5530 | I196: 天津永俊金属制品有限公司 | J196: 0.0000
A197: 液晶显示器-未破碎塑料 | B197: C-03-01-08 | C197: 0.0000 | D197: 14.2175 | E197: 0.0000 | F197: 14.2175 | G197: 0.0000 | H197: 14.2175 | I197: 湖南同力二次加工 | J197: 0.0000
A198: CRT电视机-未破碎塑料 | B198: C-03-01-01 | C198: 0.0000 | D198: 77.0370 | E198: 0.0000 | F198: 77.0370 | G198: 0.0000 | H198: 77.0370 | I198: 湖南同力二次加工 | J198: 0.0000
A199: 空调-未破碎塑料 | B199: C-03-01-03 | C199: 0.0000 | D199: 208.4615 | E199: 0.0000 | F199: 208.4615 | G199: 0.0000 | H199: 208.4615 | I199: 湖南同力二次加工 | J199: 0.0000
A200: 洗衣机-未破碎塑料 | B200: C-03-01-04 | C200: 0.0000 | D200: 441.1710 | E200: 0.0000 | F200: 441.1710 | G200: 0.0000 | H200: 441.1710 | I200: 湖南同力二次加工 | J200: 0.0000
... 98 more rows

Sheet 株洲凯天
A1: 附表2：
A2: 株洲凯天环保科技有限公司2025年第4季度拆解产物产生、处理明细表
A3: 拆解产物名称 | B3: 编码 | C3: 上期结存（吨） | D3: 本期产生量（吨） | E3: 本期盘盈（吨） | F3: 本期处理量（吨） | G3: 本期盘亏（吨） | H3: 本期处理量明细 | J3: 库存量（吨） | K3: 是否为危废 | L3: 备注 | M3: 产生 | O3: 处理
H4: 重量（吨） | I4: 处理单位 | M4: 危废 | N4: 固废 | O4: 危废 | P4: 固废
A5: 铜及其合金 | B5: B-01-01 | C5: 56.7365 | D5: 80.912 | E5: 0.422 | F5: 93.522 | G5: 0.305 | H5: 14.67 | I5: 湖北翰联环保科技有限公司 | J5: =C5+D5+E5-F5-G5 -> 44.2435 | N5: =D5-M5 -> 80.912 | P5: =H5-O5 -> 14.67
H6: 13.572 | I6: 天津凯撒金属有限公司 | N6: 0 | P6: 13.572
H7: 40.282 | I7: 天津科盟环保科技有限公司 | N7: 0 | P7: 40.282
H8: 8.578 | I8: 天津荣和金属制品有限公司 | N8: 0 | P8: 8.578
H9: 16.42 | I9: 天津永俊金属制品有限公司 | N9: 0 | P9: 16.42
A10: 铝及其合金 | B10: B-01-02 | C10: 53.771 | D10: 72.118 | E10: 0.497 | F10: 76.471 | G10: 0.222 | H10: 7.38 | I10: 临沂恒昌金属制品有限公司 | J10: =C10+D10+E10-F10-G10 -> 49.693 | N10: 72.118 | P10: 7.38
H11: 0.974 | I11: 天津奥尼斯特物产开发有限公司 | N11: 0 | P11: 0.974
H12: 5.61 | I12: 天津开泰金属制品有限公司 | N12: 0 | P12: 5.61
H13: 62.507 | I13: 天津凯撒金属有限公司 | N13: 0 | P13: 62.507
A14: 锌及其合金 | B14: B-01-03 | C14: 2.647 | D14: 2.278 | I14: 暂存 | J14: 4.925 | N14: 2.278 | P14: 0
A15: 铁及其合金 | B15: B-02-01 | C15: 275.0561 | D15: 2433.2735 | E15: 0.4645 | F15: 2488.857 | H15: 1885.53 | I15: 湖南鑫泓环保科技有限公司 | J15: 219.9371 | N15: 2433.2735 | P15: 1885.53
H16: 17.41 | I16: 临沂恒昌金属制品有限公司 | N16: 0 | P16: 17.41
H17: 252.93 | I17: 娄底市报废汽车回收拆解有限公司 | N17: 0 | P17: 252.93
H18: 3.744 | I18: 天津奥尼斯特物产开发有限公司 | N18: 0 | P18: 3.744
H19: 110.18 | I19: 天津晟耀再生资源有限公司 | N19: 0 | P19: 110.18
H20: 24.16 | I20: 天津凯成发金属制品有限公司 | N20: 0 | P20: 24.16
H21: 70.07 | I21: 天津凯撒金属有限公司 | N21: 0 | P21: 70.07
H22: 117.7 | I22: 天津荣和金属制品有限公司 | N22: 0 | P22: 117.7
H23: 7.133 | I23: 株洲市悦智贸易有限公司 | N23: 0 | P23: 7.133
A24: 其他塑料 | B24: C-03-01 | C24: 226.298 | D24: 1645.7985 | E24: 0.108 | F24: 1662.887 | H24: 154.99 | I24: 安徽国恩新型材料科技有限公司 | J24: =C24+D24+E24-F24-G24 -> 209.3175 | N24: 1645.7985 | P24: 154.99
H25: 31.48 | I25: 湖北省华中再生资源有限公司 | N25: 0 | P25: 31.48
H26: 44.54 | I26: 湖南同泰循环经济有限公司 | N26: 0 | P26: 44.54
H27: 159.01 | I27: 临沂钰涵再生资源有限公司 | N27: 0 | P27: 159.01
H28: 94.57 | I28: 清远市宏鑫塑料五金有限公司 | N28: 0 | P28: 94.57
H29: 90.49 | I29: 韶关鑫山塑料有限公司 | N29: 0 | P29: 90.49
H30: 3.475 | I30: 天津奥尼斯特物产开发有限公司 | N30: 0 | P30: 3.475
H31: 27.94 | I31: 天津开泰金属制品有限公司 | N31: 0 | P31: 27.94
H32: 31.27 | I32: 天津永俊金属制品有限公司 | N32: 0 | P32: 31.27
H33: 1025.122 | I33: 深加工领料 | N33: 0 | P33: 1025.122
A34: 异丁烷制冷剂 | B34: D-01-01 | C34: 3.664 | D34: 7.267 | F34: 10.363 | H34: 10.363 | I34: 天津澳宏环保材料有限公司 | J34: =C34+D34+E34-F34-G34 -> 0.568 | N34: 7.267 | P34: 10.363
A35: 润滑油 | B35: D-01-03 | C35: 3.9705 | D35: 8.169 | F35: 8.5145 | H35: 8.5145 | I35: 湖南中宝石化有限公司 | J35: 3.625 | K35: 是 | M35: =D35 -> 8.169 | N35: 0 | O35: =H35 -> 8.5145 | P35: 0
A36: 平衡环内盐水 | B36: D-01-04 | C36: 1.363 | D36: 59.598 | F36: 60.961 | H36: 60.961 | I36: 株洲凯天环保科技有限公司 | J36: 0 | N36: 59.598 | P36: 60.961
A37: CRT玻璃 | B37: E-01-01 | C37: 4.597 | D37: 4.007 | I37: 暂存 | J37: 8.604 | N37: 4.007 | P37: 0
A38: CRT锥玻璃 | B38: E-01-02 | C38: 98.649 | D38: 137.094 | E38: 0.112 | F38: 162.32 | H38: 162.32 | I38: 汨罗万容固体废物处理有限公司 | J38: 73.535 | K38: 是 | M38: 137.094 | N38: 0 | O38: 162.32 | P38: 0
A39: CRT屏玻璃 | B39: E-01-03 | C39: 30.975 | D39: 266.39 | F39: 278.65 | H39: 278.65 | I39: 湖南省鸿森玻璃纤维有限公司 | J39: 18.715 | N39: 266.39 | P39: 278.65
A40: 管颈管（电子枪）玻璃 | B40: E-01-06 | C40: 3.097 | D40: 1.597 | F40: 3.485 | H40: 3.485 | I40: 汨罗万容固体废物处理有限公司 | J40: 1.209 | K40: 是 | M40: 1.597 | N40: 0 | O40: 3.485 | P40: 0
A41: 其他玻璃 | B41: E-01-07 | C41: 58.522 | D41: 106.344 | E41: 0.198 | F41: 100.2 | H41: 100.2 | I41: 株洲辉文工贸有限公司 | J41: 64.864 | N41: 106.344 | P41: 100.2
A42: 压缩机 | B42: F-01-03 | C42: 350.8035 | D42: 962.295 | F42: 871.33 | H42: 285.55 | I42: 湖北翰联环保科技有限公司 | J42: 441.7685 | N42: 962.295 | P42: 285.55
H43: 171.11 | I43: 湖南川拓再生资源有限公司 | N43: 0 | P43: 171.11
H44: 239.12 | I44: 天津恒丰运业金属制品有限公司 | N44: 0 | P44: 239.12
H45: 104.66 | I45: 天津凯成发金属制品有限公司 | N45: 0 | P45: 104.66
H46: 70.89 | I46: 天津永俊金属制品有限公司 | N46: 0 | P46: 70.89
A47: 电动机 | B47: F-01-04 | C47: 144.112 | D47: 265.302 | E47: 0.863 | F47: 212.85 | G47: 0.465 | H47: 177.62 | I47: 临沂恒昌金属制品有限公司 | J47: =C47+D47+E47-F47-G47 -> 196.962 | N47: 265.302 | P47: 177.62
H48: 35.23 | I48: 天津诺康金属制品有限公司 | N48: 0 | P48: 35.23
A49: 电容器 | B49: F-01-05 | C49: 22.2735 | D49: 12.915 | E49: 0.065 | F49: 32.48 | H49: 32.48 | I49: 天津开泰金属制品有限公司 | J49: 2.7735 | N49: 12.915 | P49: 32.48
A50: 硬 盘 | B50: F-01-06 | C50: 3.3525 | D50: 0.052 | F50: 0.7875 | H50: 0.7875 | I50: 天津奥尼斯特物产开发有限公司 | J50: 2.617 | N50: 0.052 | P50: 0.7875
A51: 印刷电路板 | B51: F-01-07 | C51: 85.497 | D51: 77.576 | E51: 0.107 | F51: 76.791 | H51: 76.791 | I51: 湖北省华中再生资源有限公司 | J51: 86.389 | K51: 是 | M51: =D51 -> 77.576 | N51: 0 | O51: =H51 -> 76.791 | P51: 0
A52: 电 池 | B52: F-01-09 | C52: 0.889 | D52: 0.002 | I52: 暂存 | J52: 0.891 | N52: 0.002 | P52: 0
A53: 扬声器 | B53: F-01-10 | C53: 5.525 | D53: 14.356 | E53: 0.058 | F53: 0.936 | H53: 0.936 | I53: 天津奥尼斯特物产开发有限公司 | J53: 19.003 | N53: 14.356 | P53: 0.936
A54: 管颈管（电子枪） | B54: F-01-11 | C54: 1.575 | D54: 0.756 | E54: 0.086 | I54: 暂存 | J54: 2.417 | N54: 0.756 | P54: 0
A55: 电源 | B55: F-01-12 | C55: 8.768 | I55: 暂存 | J55: 8.768 | N55: 0 | P55: 0
A56: 光驱 | B56: F-01-13 | C56: 0.324 | I56: 暂存 | J56: 0.324 | N56: 0 | P56: 0
A57: 蒸发器 | B57: F-01-15 | C57: 29.0355 | D57: 64.7575 | E57: 0.168 | F57: 79.27 | H57: 34.77 | I57: 汨罗市伟业有色金属有限公司 | J57: 14.691 | N57: 64.7575 | P57: 34.77
H58: 28.28 | I58: 天津晟耀再生资源有限公司 | N58: 0 | P58: 28.28
H59: 16.22 | I59: 天津荣和金属制品有限公司 | N59: 0 | P59: 16.22
A60: 冷凝器 | B60: F-01-16 | C60: 81.405 | D60: 131.5125 | F60: 189.2435 | H60: 19.92 | I60: 汨罗市华潇铝业有限公司 | J60: =C60+D60+E60-F60-G60 -> 23.674 | N60: 131.5125 | P60: 19.92
H61: 52.35 | I61: 天津永俊金属制品有限公司 | N61: 0 | P61: 52.35
H62: 116.9735 | I62: 深加工领料 | N62: 0 | P62: 116.9735
A63: 开关 | B63: F-01-17 | C63: 2.482 | D63: 0.921 | I63: 暂存 | J63: 3.403 | N63: 0.921 | P63: 0
A64: 调频器 | B64: F-01-20 | C64: 1.212 | D64: 0.448 | I64: 暂存 | J64: 1.66 | N64: 0.448 | P64: 0
A65: 变压器 | B65: F-01-21 | C65: 15.182 | D65: 17.236 | E65: 0.097 | F65: 24.81 | H65: 24.81 | I65: 天津开泰金属制品有限公司 | J65: 7.705 | N65: 17.236 | P65: 24.81
A66: 液晶面板 | B66: F-01-23 | C66: 8.003 | D66: 32.874 | F66: 40.877 | H66: 40.877 | I66: 湖南嘉宸再生资源利用有限公司 | J66: 0 | N66: 32.874 | P66: 40.877
A67: 背光源 | B67: F-01-24 | C67: 0.024 | D67: 2.648 | F67: 0.026 | H67: 0.026 | I67: 天津奥尼斯特物产开发有限公司 | J67: 2.646 | N67: 2.648 | P67: 0.026
A68: 含汞背光灯管 | B68: F-01-25 | C68: 0.097 | D68: 0.106 | E68: 0.01 | I68: 暂存 | J68: 0.213 | K68: 是 | M68: =D68 -> 0.106 | N68: 0 | O68: =H68 -> 0 | P68: 0
A69: 其他废弃零部件 | B69: F-01-26 | C69: 122.324 | D69: 152.453 | E69: 1.165 | F69: 191.761 | G69: 0.061 | H69: 12.593 | I69: 湖南同泰循环经济有限公司 | J69: 84.12 | N69: =D69-M69 -> 152.453 | P69: =H69-O69 -> 12.593
H70: 3.21 | I70: 汨罗市华潇铝业有限公司 | N70: 0 | P70: 3.21
H71: 9.7 | I71: 天津奥尼斯特物产开发有限公司 | N71: 0 | P71: 9.7
H72: 35.06 | I72: 天津博瑞特金属制品有限公司 | N72: 0 | P72: 35.06
H73: 37.45 | I73: 天津开泰金属制品有限公司 | N73: 0 | P73: 37.45
H74: 31.535 | I74: 天津科盟环保科技有限公司 | N74: 0 | P74: 31.535
H75: 62.213 | I75: 天津永俊金属制品有限公司 | N75: 0 | P75: 62.213
A76: 荧光粉 | B76: G-01-02 | C76: 0.054 | D76: 0.104 | E76: 0.002 | I76: 暂存 | J76: =C76+D76+E76-F76-G76 -> 0.16 | K76: 是 | M76: =D76 -> 0.104 | N76: 0 | O76: =H76 -> 0 | P76: 0
A77: 电线电缆 | B77: G-01-03 | C77: 13.9762 | D77: 38.549 | F77: 27.116 | G77: 0.207 | H77: 0.286 | I77: 天津奥尼斯特物产开发有限公司 | J77: 25.2022 | N77: 38.549 | P77: 0.286
H78: 26.83 | I78: 天津淏泽丰润业金属有限公司 | N78: 0 | P78: 26.83
A79: 保温层材料 | B79: G-01-04 | C79: 71.5005 | D79: 741.883 | F79: 750.62 | G79: 21.4615 | H79: 750.62 | I79: 株洲恒基资源再生有限公司 | J79: 41.302 | N79: 741.883 | P79: 750.62
A80: 橡 胶 | B80: G-01-06 | C80: 39.0315 | D80: 74.392 | E80: 0.259 | F80: 96.961 | G80: 0.031 | H80: 55.52 | I80: 天津奥尼斯特物产开发有限公司 | J80: 16.6905 | N80: 74.392 | P80: 55.52
H81: 12.011 | I81: 天津凯撒金属有限公司 | N81: 0 | P81: 12.011
H82: 29.43 | I82: 天津永俊金属制品有限公司 | N82: 0 | P82: 29.43
A83: 其他杂料及废物 | B83: G-01-07 | C83: 14.5595 | D83: 246.479 | F83: 244.2345 | H83: 0.9085 | I83: 天津奥尼斯特物产开发有限公司 | J83: =C83+D83+E83-F83-G83 -> 16.804 | N83: 246.479 | P83: 0.9085
H84: 243.326 | I84: 株洲合信再生资源有限公司 | N84: 0 | P84: 243.326
A85: 拆解产物合计 | C85: =SUM(C5:C84) -> 1841.3518 | D85: 7662.463 | E85: 4.6815 | F85: 7786.324 | G85: 22.7525 | H85: 7786.324 | J85: =C85+D85+E85-F85-G85 -> 1699.4198 | M85: =SUM(M5:M84) -> 224.646 | N85: 7437.817 | O85: 251.1105 | P85: 7535.2135
A86: 深加工情况
A87: 铜及其合金（二次产物） | B87: B-01-01 | C87: 0 | D87: 54.8565 | F87: 41.59 | G87: 0.1905 | H87: 23.03 | I87: 汨罗市伟业有色金属有限公司 | J87: =C87+D87+E87-F87-G87 -> 13.076
H88: 18.56 | I88: 天津凯成发金属制品有限公司
A89: 铝及其合金（二次产物） | B89: B-01-02 | C89: 0 | D89: 54.61 | F89: 32.71 | G89: 0.02 | H89: 32.71 | I89: 天津凯成发金属制品有限公司 | J89: =C89+D89+E89-F89-G89 -> 21.88
A90: 铁及其合金（二次产物） | B90: B-02-01 | C90: 0 | D90: 5.491 | I90: 暂存 | J90: 5.491
A91: 其他塑料（二次产物） | B91: C-03-01 | C91: 500.1335 | D91: 997.123 | F91: 987.83 | H91: 65.37 | I91: 安徽国恩新型材料科技有限公司 | J91: 509.4265
H92: 29.97 | I92: 广东隽诺利安德巴赛尔新材料有限公司
H93: 302.12 | I93: 湖南省同力循环经济发展有限公司
H94: 57.44 | I94: 湖南省新基源新材料科技有限公司
H95: 53.22 | I95: 湖南同泰循环经济有限公司
H96: 97.3 | I96: 汨罗市优品生活用品制造有限公司
H97: 182.65 | I97: 天津凯成发金属制品有限公司
H98: 114.63 | I98: 天津凯撒金属有限公司
H99: 28.55 | I99: 天津科盟环保科技有限公司
H100: 29.74 | I100: 万容日丽新材料(湖南)有限公司
H101: 26.84 | I101: 漳州市金钰尚霖工贸有限公司
A102: 其他杂料及废物 （二次产物） | B102: G-01-07 | C102: 1.639 | D102: 19.879 | F102: 20.95 | H102: 20.95 | I102: 株洲合信再生资源有限公司 | J102: =C102+D102+E102-F102-G102 -> 0.568
A103: 备注：本期二次加工领料1142.0955吨，加工后产物入库1131.9595吨，损耗10.136吨。
A105: 填报单位名称：株洲凯天环保科技有限公司

Sheet 湖南绿色
A1: 附表2：
A2: 湖南绿色再生资源有限公司2025年第4季度拆解产物产生、处理明细表
A3: 废物名称 | B3: 编码 | C3: 上期结存 （吨） | D3: 调整 (吨） | E3: 本期产生量 （吨） | F3: 本期产生量 （吨） | G3: 磅差 （吨） | H3: 本期处理量（吨） | I3: 本期处理量明细 | N3: 库存量 （吨）
I4: 专项资金 出库重量 | J4: 二次出库量 | K4: 领料 | L4: 出库明细 | M4: 处理单位
A5: 保温层材料(吨) | B5: G-01-04-01 | C5: 8.6694 | D5: 0.0000 | E5: 344.1134 | F5: 344.6040 | G5: -0.4906 | H5: 345.4568 | I5: 345.4568 | J5: 1.4632 | K5: 0.0000 | L5: 294.7400 | M5: 益阳益邦再生资源有限公司 | N5: 7.3260
L6: 52.1800 | M6: 长沙绿动循环环保科技发展有限责任公司
A7: 印刷电路板(吨) | B7: F-01-07/08 | C7: 91.3438 | D7: 0.0000 | E7: 200.6524 | F7: 200.7471 | G7: -0.0947 | H7: 211.5882 | I7: 211.5882 | J7: 0.0000 | K7: 0.0000 | L7: 188.1232 | M7: 江西畅达再生资源有限公司 | N7: 80.4080
L8: 23.4650 | M8: 湘潭云萃环保技术有限公司
A9: CRT玻璃（吨） | B9: E-01-01 | C9: 0.0000 | D9: 0.0000 | E9: 0.0000 | F9: 0.0000 | G9: 0.0000 | H9: 0.0000 | I9: 0.0000 | J9: 0.0000 | K9: 0.0000 | L9: 0.0000 | M9: —— | N9: 0.0000
A10: CRT锥玻璃(吨) | B10: E-01-02 | C10: 0.0000 | D10: -0.0000 | E10: 0.0000 | F10: 0.0000 | G10: 0.0000 | H10: 0.0000 | I10: 0.0000 | J10: 0.0000 | K10: 0.0000 | L10: 0.0000 | M10: —— | N10: 0.0000
A11: CRT屏玻璃(吨) | B11: E-01-03 | C11: 8.2310 | D11: 0.0000 | E11: 0.0330 | F11: 0.0000 | G11: 0.0330 | H11: 8.2640 | I11: 8.2640 | J11: 17.5800 | K11: 0.0000 | L11: 25.8440 | M11: 长沙绿动循环环保科技发展有限责任公司 | N11: 0.0000
A12: 压缩机 | B12: F-01-03 | C12: 929.1360 | D12: 0.0000 | E12: 2501.4600 | F12: 2505.2120 | G12: -3.7520 | H12: 3184.2930 | I12: 3182.7820 | J12: 3.9045 | K12: 1.5110 | L12: 69.5215 | M12: 天津奥尼斯特物产开发有限公司 | N12: 246.3030
L13: 623.4390 | M13: 天津博瑞特金属制品有限公司
L14: 1311.8230 | M14: 天津恒丰运业金属制品有限公司
L15: 248.4640 | M15: 天津永俊金属制品有限公司
L16: 933.4390 | M16: 铜陵福茂再生资源利用有限公司
L17: 1.5110 | M17: 湖南绿色再生资源有限公司自行领料
A18: 电动机(洗衣机）/减速机 | B18: F-01-04-05 | C18: 0.2961 | D18: 0.0000 | E18: 27.4555 | F18: 27.4555 | G18: 0.0000 | H18: 0.0000 | I18: 0.0000 | J18: 0.0000 | K18: 0.0000 | L18: 0.0000 | M18: —— | N18: 27.7516
A19: 洗衣机电线电缆(吨) | B19: G-01-03-02 | C19: -0.0000 | D19: 0.0000 | E19: 1.1870 | F19: 1.1870 | G19: 0.0000 | H19: 0.0000 | I19: 0.0000 | J19: 0.0000 | K19: 0.0000 | L19: 0.0000 | M19: —— | N19: 1.1870
A20: 制冷剂 | B20: D-01-02 | C20: 7.1449 | D20: 0.0000 | E20: 49.5890 | F20: 49.6580 | G20: -0.0690 | H20: 48.5400 | I20: 48.5400 | J20: 0.0000 | K20: 0.0000 | L20: 48.5400 | M20: 邵武永和金塘新材料有限公司 | N20: 8.1939
A21: 铜及其合金(吨) | B21: B-01-01 | C21: 183.3474 | D21: -34.4374 | E21: 199.8319 | F21: 199.8879 | G21: -0.0560 | H21: 198.2369 | I21: 181.9719 | J21: 5.4614 | K21: 16.2650 | L21: 33.3255 | M21: 江西日昇金属有限公司 | N21: 150.5050
L22: 11.0668 | M22: 天津奥尼斯特物产开发有限公司
L23: 52.9905 | M23: 天津恒丰运业金属制品有限公司
L24: 24.2770 | M24: 天津开泰金属制品有限公司
L25: 65.7735 | M25: 长沙杰雄通塑胶科技有限公司
L26: 16.2650 | M26: 湖南绿色再生资源有限公司自行领料
A27: 铝及其合金(吨) | B27: B-01-02 | C27: 6.6540 | D27: 1.8963 | E27: 62.5122 | F27: 62.5172 | G27: -0.0050 | H27: 41.8850 | I27: 41.8850 | J27: 2.7210 | K27: 0.0000 | L27: 21.8765 | M27: 湖南万潜再生资源有限公司 | N27: 29.1775
L28: 8.5615 | M28: 天津奥尼斯特物产开发有限公司
L29: 14.1680 | M29: 益阳益邦再生资源有限公司
A30: 铁及其合金(吨) | B30: B-02-01 | C30: 182.2593 | D30: -2.2504 | E30: 3222.3257 | F30: 3220.7256 | G30: 1.6001 | H30: 3232.5035 | I30: 3164.3272 | J30: 55.5511 | K30: 68.1763 | L30: 674.0025 | M30: 冷水江金大路环保科技有限公司 | N30: 169.8311
L31: 1319.7870 | M31: 汨罗市和盛废旧物资有限公司
L32: 1005.8000 | M32: 韶山金弘再生资源有限公司
L33: 25.6310 | M33: 天津埃莫森铜业有限公司
L34: 12.8558 | M34: 天津奥尼斯特物产开发有限公司
L35: 162.9640 | M35: 天津博瑞特金属制品有限公司
L36: 18.8380 | M36: 天津通宜顺金属制品有限公司
L37: 68.1763 | M37: 湖南绿色再生资源有限公司自行领料
A38: 塑 料(吨) | B38: C | C38: 759.7115 | D38: -35.9375 | E38: 1854.2145 | F38: 1854.5293 | G38: -0.3148 | H38: 1674.2450 | I38: 929.2616 | J38: 144.1211 | K38: 744.9834 | L38: 32.0970 | M38: 佛山市顺德区同泰塑料实业有限公司 | N38: 903.7435
L39: 406.3152 | M39: 江苏松上科技有限公司
L40: 96.4265 | M40: 临沂昱博再生资源利用有限公司
L41: 1.7325 | M41: 天津奥尼斯特物产开发有限公司
L42: 153.1640 | M42: 万容日丽新材料(湖南)有限公司
L43: 9.0900 | M43: 益阳益邦再生资源有限公司
L44: 146.3490 | M44: 云浮市郁南县顺港高分子有限公司
L45: 107.5300 | M45: 长沙绿动循环环保科技发展有限责任公司
L46: 120.6785 | M46: 珠海市新之源再生资源回收有限公司
L47: 744.9834 | M47: 湖南绿色再生资源有限公司自行领料
A48: （空调）冷凝器 | B48: F-01-16-01 | C48: 13.5531 | D48: -0.0000 | E48: 661.3960 | F48: 661.3960 | G48: 0.0000 | H48: 644.3380 | I48: 0.0000 | J48: 0.0000 | K48: 644.3380 | L48: 644.3380 | M48: 湖南绿色再生资源有限公司自行领料 | N48: 30.6111
A49: （空调）蒸发器 | B49: F-01-15-01 | C49: 38.5570 | D49: 0.0000 | E49: 356.2720 | F49: 356.3800 | G49: -0.1080 | H49: 364.0280 | I49: 53.8700 | J49: 0.0000 | K49: 310.1580 | L49: 310.1580 | M49: 湖南绿色再生资源有限公司自行领料 | N49: 30.8010
L50: 29.3000 | M50: 天津永俊金属制品有限公司
L51: 24.5700 | M51: 天津恒丰运业金属制品有限公司
A52: 电源 | B52: F-01-12-01 | C52: 0.0000 | D52: 0.0000 | E52: 120.6915 | F52: 120.6915 | G52: 0.0000 | H52: 0.0000 | I52: 0.0000 | J52: 0.0000 | K52: 0.0000 | L52: 0.0000 | M52: —— | N52: 120.6915
A53: 光驱 | B53: F-01-13-01 | C53: 26.8359 | D53: 0.0000 | E53: 78.6004 | F53: 78.6228 | G53: -0.0224 | H53: 55.8550 | I53: 55.8550 | J53: 0.0000 | K53: 0.0000 | L53: 55.8550 | M53: 天津恒丰运业金属制品有限公司 | N53: 49.5813
A54: 软驱 | B54: F-01-14-01 | C54: 0.0000 | D54: 0.0000 | E54: 0.0000 | F54: 0.0000 | G54: 0.0000 | H54: 0.0000 | I54: 0.0000 | J54: 0.0000 | K54: 0.0000 | L54: 0.0000 | M54: —— | N54: 0.0000
A55: 硬盘 | B55: F-01-06-01 | C55: 5.0275 | D55: 0.0000 | E55: 1.7753 | F55: 1.7753 | G55: 0.0000 | H55: 0.0000 | I55: 0.0000 | J55: 0.0000 | K55: 0.0000 | L55: 0.0000 | M55: —— | N55: 6.8028
A56: 矿物油 | B56: D-01-03-02 | C56: 2.1235 | D56: 0.0000 | E56: 29.6775 | F56: 29.6725 | G56: 0.0050 | H56: 28.8820 | I56: 28.8820 | J56: 0.0000 | K56: 0.0000 | L56: 28.8820 | M56: 长沙铭远环保科技有限公司 | N56: 2.9190
A57: 荧光粉 | B57: G-01-02-01 | C57: 0.0273 | D57: 0.0000 | E57: 0.0000 | F57: 0.0000 | G57: 0.0000 | H57: 0.0000 | I57: 0.0000 | J57: 0.0000 | K57: 0.0000 | L57: 0.0000 | M57: —— | N57: 0.0273
A58: 液晶面板 | B58: F-01-23-01 | C58: 6.3555 | D58: 0.0000 | E58: 239.5239 | F58: 239.5615 | G58: -0.0376 | H58: 190.8480 | I58: 190.8480 | J58: 0.0000 | K58: 0.0000 | L58: 190.8480 | M58: 湖南嘉宸再生资源利用有限公司 | N58: 55.0314
A59: 光学膜片 | B59: C-03-01-33 | C59: 33.8839 | D59: 0.0000 | E59: 58.3530 | F59: 58.3530 | G59: 0.0000 | H59: 65.4300 | I59: 65.4300 | J59: 0.0000 | K59: 0.0000 | L59: 65.4300 | M59: 云浮市郁南县顺港高分子有限公司 | N59: 26.8069
A60: 含汞背光灯管 | B60: F-01-25-01 | C60: 0.6613 | D60: 0.0000 | E60: 1.1844 | F60: 1.1855 | G60: -0.0011 | H60: 0.7724 | I60: 0.7724 | J60: 0.0000 | K60: 0.0000 | L60: 0.7724 | M60: 四川长虹格润环保科技股份有限公司 | N60: 1.0733
A61: LED灯带 | B61: F-01-24-01 | C61: 2.0929 | D61: 0.0000 | E61: 14.2024 | F61: 14.2024 | G61: 0.0000 | H61: 0.0000 | I61: 0.0000 | J61: 0.0000 | K61: 0.0000 | L61: 0.0000 | M61: —— | N61: 16.2953
A62: 小计： | C62: 2305.9113 | D62: -70.7290 | E62: 10025.0510 | F62: 10028.3641 | G62: -3.3131 | H62: 10295.1658 | I62: 8509.7341 | J62: 230.8023 | K62: 1785.4317 | L62: 10525.9681 | M62: —— | N62: 1965.0675
A63: 电池 | B63: F-01-09-01 | C63: 0.5627 | D63: -0.1635 | E63: 0.0837 | F63: 0.0837 | G63: 0.0000 | H63: 0.3387 | I63: 0.3387 | J63: 0.0000 | K63: 0.0000 | L63: 0.3387 | M63: 天津开泰金属制品有限公司 | N63: 0.1442
A64: 排水电机 | B64: F-01-04-03 | C64: 0.0000 | D64: 0.0000 | E64: 1.0245 | F64: 1.0245 | G64: 0.0000 | H64: 0.0000 | I64: 0.0000 | J64: 0.0000 | K64: 0.0000 | L64: 0.0000 | M64: —— | N64: 1.0245
A65: (冰箱）玻璃 | B65: E-01-07-01 | C65: 11.7682 | D65: 0.0000 | E65: 27.2634 | F65: 27.2370 | G65: 0.0264 | H65: 12.4718 | I65: 12.4718 | J65: 0.0000 | K65: 0.0000 | L65: 12.4718 | M65: 长沙绿动循环环保科技发展有限责任公司 | N65: 26.5598
A66: （空调）玻璃 | B66: E-01-07-02 | C66: 0.0000 | D66: 0.0000 | E66: 0.0000 | F66: 0.0000 | G66: 0.0000 | H66: 0.0000 | I66: 0.0000 | J66: 0.0000 | K66: 0.0000 | L66: 0.0000 | M66: —— | N66: 0.0000
A67: 固化玻璃 | B67: 无 | C67: 0.0000 | D67: 0.0000 | E67: 0.0000 | F67: 0.0000 | G67: 0.0000 | H67: 0.0000 | I67: 0.0000 | J67: 0.0000 | K67: 0.0000 | L67: 0.0000 | M67: —— | N67: 0.0000
A68: 灯泡 | B68: F-01-26-25 | C68: 0.2693 | D68: 0.0000 | E68: 0.0000 | F68: 0.0000 | G68: 0.0000 | H68: 0.2693 | I68: 0.2693 | J68: 0.1102 | K68: 0.0000 | L68: 0.1165 | M68: 长沙绿动循环环保科技发展有限责任公司 | N68: 0.0000
F69: 0.0000 | L69: 0.2630 | M69: 天津开泰金属制品有限公司
A70: 冰箱电机 | B70: F-01-04-04 | C70: 0.0000 | D70: 0.0000 | E70: 0.0000 | F70: 0.0000 | G70: 0.0000 | H70: 0.0000 | I70: 0.0000 | J70: 0.0000 | K70: 0.0000 | L70: 0.0000 | M70: —— | N70: 0.0000
A71: （空调）电机 | B71: F-01-04-05 | C71: 79.0037 | D71: 0.0000 | E71: 501.3089 | F71: 501.4186 | G71: -0.1097 | H71: 469.4895 | I71: 469.4895 | J71: 0.0000 | K71: 0.0000 | L71: 373.3895 | M71: 天津永俊金属制品有限公司 | N71: 110.8231
L72: 67.6840 | M72: 天津博瑞特金属制品有限公司
L73: 2.9550 | M73: 天津奥尼斯特物产开发有限公司
L74: 25.4610 | M74: 天津恒丰运业金属制品有限公司
A75: 橡胶（洗衣机） | B75: 无 | C75: 0.0594 | D75: 0.0000 | E75: 0.2800 | F75: 0.2800 | G75: 0.0000 | H75: 0.0000 | I75: 0.0000 | J75: 0.0000 | K75: 0.0000 | L75: 0.0000 | M75: —— | N75: 0.3394
A76: 盐水 | B76: D-01-04-01 | C76: 0.0000 | D76: 0.0000 | E76: 2.5060 | F76: 2.5060 | G76: 0.0000 | H76: 2.5060 | I76: 0.0000 | J76: 0.0000 | K76: 2.5060 | L76: 2.5060 | M76: 湖南绿色再生资源有限公司无害化处理 | N76: 0.0000
A77: 皮带（洗衣机） | B77: 无 | C77: 0.0000 | D77: 0.0000 | E77: 0.0000 | F77: 0.0000 | G77: 0.0000 | H77: 0.0000 | I77: 0.0000 | J77: 0.0000 | K77: 0.0000 | L77: 0.0000 | M77: —— | N77: 0.0000
A78: 其他 | B78: 无 | C78: 121.5499 | D78: 94.9124 | E78: 456.8206 | F78: 460.1302 | G78: -3.3096 | H78: 486.4878 | I78: 432.3437 | J78: 70.8664 | K78: 54.1441 | L78: 54.1441 | M78: 湖南绿色再生资源有限公司自行领料 | N78: 186.7951
L79: 46.9661 | M79: 天津开泰金属制品有限公司
L80: 95.1110 | M80: 长沙绿动循环环保科技发展有限责任公司
L81: 175.6700 | M81: 益阳益邦再生资源有限公司
L82: 10.3560 | M82: 天津中商瑞隆金属制品有限公司
L83: 36.7680 | M83: 天津奥尼斯特物产开发有限公司
L84: 70.3475 | M84: 天津恒丰运业金属制品有限公司
L85: 67.9915 | M85: 天津永俊金属制品有限公司
A86: 管颈管（电子枪）玻璃 | B86: E-01-06-01 | C86: -0.0000 | D86: 0.0000 | E86: 0.0000 | F86: 0.0000 | G86: 0.0000 | H86: 0.0000 | I86: 0.0000 | J86: 0.0000 | K86: 0.0000 | L86: 0.0000 | M86: —— | N86: 0.0000
A87: 电线电缆（笔记本） | B87: G-01-03-08 | C87: 0.2303 | D87: -0.1095 | E87: 1.3556 | F87: 1.3560 | G87: -0.0004 | H87: 0.0000 | I87: 0.0000 | J87: 0.0000 | K87: 0.0000 | L87: 0.0000 | M87: —— | N87: 1.4764
A88: 键盘（笔记本） | B88: F-01-26-26 | C88: 3.4613 | D88: -1.0898 | E88: 9.3990 | F88: 9.3975 | G88: 0.0015 | H88: 0.0000 | I88: 0.0000 | J88: 0.0000 | K88: 0.0000 | L88: 0.0000 | M88: —— | N88: 11.7705
A89: 硬脚电容 | B89: F-01-05-02 | C89: 44.6966 | D89: -29.6275 | E89: 35.4416 | F89: 35.4257 | G89: 0.0159 | H89: 48.9255 | I89: 48.9255 | J89: 0.0000 | K89: 0.0000 | L89: 11.8675 | M89: 天津奥尼斯特物产开发有限公司 | N89: 1.5852
L90: 12.8120 | M90: 天津开泰金属制品有限公司
L91: 24.2460 | M91: 天津永俊金属制品有限公司
A92: 小计： | C92: =SUM(C63:C90) -> 261.6014 | D92: =SUM(D63:D90) -> 63.9221 | E92: =SUM(E63:E90) -> 1035.4833 | F92: 1038.8592 | G92: -3.3759 | H92: 1020.4886 | I92: 963.8385 | J92: 70.9766 | K92: 56.6501 | L92: 1067.2192 | M92: —— | N92: =SUM(N63:N90) -> 340.5182
A93: 总计 | C93: =C62+C92 -> 2567.5127 | D93: =D62+D92 -> -6.8069 | E93: =E62+E92 -> 11060.5343 | F93: 11067.2233 | G93: -6.6890 | H93: 11315.6544 | I93: 9473.5726 | J93: 301.7789 | K93: 1842.0818 | L93: 11593.1873 | M93: —— | N93: =N62+N92 -> 2305.5857
A94: 备注：调整差异主要为调整物料名称分类、编码变更及物资调账表格数据未更新。
E95: 11060534.30 | F95: 11067223.30 | G95: -6689.00 | H95: 11315654.40 | I95: 9473572.60 | J95: 301778.90 | K95: 1842081.80 | L95: 11617433.30 | N95: 2305585.70
B96: 与2025年第4季度明细数据比 | C96: 2567.5127 | D96: =D95/1000 -> 0.0000 | E96: =E95/1000 -> 11060.5343 | F96: 11067.2233 | G96: -6.6890 | H96: 11315.6544 | I96: 9473.5726 | J96: 301.7789 | K96: 1842.0818 | L96: 11617.4333 | N96: =N95/1000 -> 2305.5857
B97: 差额 | C97: 0.0000 | D97: =D93-D96 -> -6.8069 | E97: =E93-E96 -> 0.0000 | F97: 0.0000 | G97: 0.0000 | H97: 0.0000 | I97: 0.0000 | J97: 0.0000 | K97: 0.0000 | L97: -24.2460 | N97: =N93-N96 -> 0.0000
C98: 与上期报告一致 | E98: 已与拆解产物入库明细核对一致 | F98: 已与拆解产物入库明细核对一致 | H98: 与拆解产物销售出库明细核对一致 | I98: 第4季度的磅差已与销售出库明细中的大小磅差核对一致（抽查视频核对一致） | M98: 附表二数据已与销售出库明细核对一致 | N98: 与期末盘点数据一致
